{"text_format":"1","workbook":"xlsx","n_sheets":14,"sheets":["Process Flow","Application","Page 1","Page 2","Page 3","Page 4","Page 5","Page 6","Page 7","Page 8","Scorecard","Commentary","Scoring Criteria","Data"],"not_rendered":{"charts":0,"images":2,"macros":1,"external_links":1,"defined_names":538,"comments":0,"pivot_tables":0},"unopened":[],"bounds":{"document_bytes":16777216,"sheet_cells":100000,"rows_first":2000,"rows_last":500,"rows_between":2000,"halvings":0,"cell_chars":16384,"cell_head_chars":4096},"cells_cut":0,"cells_raw":0,"read":"whole","date_system":"1900"}

{"sheet":"Process Flow","index":0,"n_rows":27,"n_cols":7,"rows_kept":27,"cut":false,"hidden":false,"merged":[[0,0,0,13]]}
["Process Flow Chart for the Application and Assessment for Minor Lighting Impovement Schemes on the National Road Network "]
[]
[]
[]
[]
[]
[]
[]
[]
[]
[]
[]
[]
[]
[]
[]
[]
[]
[]
[]
[]
[]
[null,null,null,null,null,null,"Further Information/Clarity from Local Authority"]
[]
[]
[]
[null,null,null,null,null,null,"Note:  Approval will be subject to availability of funding"]

{"sheet":"Application","index":1,"n_rows":205,"n_cols":11,"rows_kept":205,"cut":false,"hidden":true,"merged":[[190,2,190,9],[191,2,191,9],[185,1,185,10],[176,3,176,9],[174,3,174,9],[188,2,188,9],[189,2,189,9],[33,1,33,4],[56,5,56,6],[170,3,172,9],[180,3,182,9],[164,3,164,9],[166,3,166,9],[178,3,178,9],[168,3,168,9],[159,3,159,9],[65,2,65,9],[70,1,70,7],[82,1,82,7],[69,2,69,9],[80,1,80,7],[86,1,86,7],[110,2,120,9],[154,2,154,9],[102,2,102,9],[104,2,104,9],[37,2,37,9],[1,1,1,9],[29,2,29,9],[31,2,31,9],[3,2,3,9],[35,2,35,9],[8,6,8,8],[15,1,15,9],[25,4,25,9],[6,1,6,9],[11,1,11,9],[21,1,21,9],[9,6,9,8],[84,1,84,7],[56,7,56,8],[57,5,57,6],[57,7,57,8],[152,2,152,9],[149,1,149,10],[72,7,72,8],[73,1,76,2],[74,3,75,8],[204,1,204,10],[205,1,205,10],[192,1,192,10],[23,8,23,9],[87,1,95,9],[186,2,186,9],[187,2,187,9],[157,1,157,9],[55,5,55,6],[55,7,55,8],[131,1,131,9],[107,1,107,10],[100,1,100,10],[101,2,101,9],[199,1,199,10],[200,1,200,10],[201,1,201,10],[202,1,202,10],[203,1,203,10],[194,1,194,10],[195,1,195,10],[196,1,196,10],[197,1,197,10],[198,1,198,10]]}
[null,"Appraisal of Route Lighting Tool"]
[null,"Section A - Scheme Overview"]
[]
[null,"Scheme Title"]
[]
[null,"Brief Scheme Description (use Annex A for further details if required)"]
[]
[null,null,"From",null,null,null,"To"]
[null,"ITM co-ordinates"]
[null,null,"(Easting)","(Northing)",null,null,"(Easting)",null,null,"(Northing)"]
[null,"Location Map (use Annex A for further details if required)"]
[]
[null,null,null,null,null,null,null,null,"Approx Scheme Length (km)"]
[]
[]
[null,"Section A - Scheme Overview (Continued)"]
[]
[null,"Route Number (s)",null,null,null,null,null,null,"Route Classification"]
[]
[null,"Speed Limit",null,null,null,null,null,null,"AADT Figure"]
[]
[null,"Section B - Scheme Background"]
[]
[null,"Is this scheme new or an extension to an earlier scheme?"]
[]
[null,"If extension how was earlier scheme funded?"]
[]
[null,"When was this work undertaken?",null,null,null,null,"Qtr/Yr"]
[]
[null,"Describe earlier works undertaken"]
[]
[null,"Why was this lighting not provided under earlier scheme?"]
[]
[null,"Does the scheme impact on non-national roads?"]
[]
[null,"If Yes, please explain "]
[]
[null,"Have alternatives to lighting been considered? Please explain"]
[]
[]
[null,"Section 1 - Technical"]
[]
[null,"Has a Lighting Design been undertaken?"]
[]
[null,"What is the Proposed Lighting Class (BS 5489-1:2013)?"]
[]
[null,"Proposed Luminaire Type"]
[]
[null,"Will the lighting be metered or unmetered?"]
[]
[null,"Expected periods of lighting operation"]
[]
[null,"Will dimming be applied?  "]
[]
[null,null,null,null,null,"From",null,"To"]
[null,"If yes, please state dimming levels and periods"]
[]
[]
[]
[null,"Will lighting be installed within the clear zone?"]
[]
[null,"Can it be moved outside of clear zone?"]
[]
[null,"Will passive safe lighting columns be provided?"]
[]
[null,"State any other relevant technical details "]
[]
[]
[null,"Section 2 - Safety"]
[]
[null,"Has this site been identified as a High Collision location under the Network Safety Ranking Process (GE-STY-01022)?"]
[null,"(If Yes, please append in Annex B)"]
[null,null,null,null,null,null,null,"        Site ID"]
[null,"Collission rates are available from  https://data.gov.ie/organization/transport-infrastructure-ireland"]
[null,null,null," Average Collision Rate  for this type of road"]
[]
[null,null,null,null,null,null,null,null,"Site Collision Rate "]
[]
[]
[]
[null,"If the GE-STY-01022 process has not been fully undertaken please state status of review"]
[]
[null,"Did the GE-STY-01022 process identify that lighting as an intervention will reduce collisions?"]
[]
[null,"If site has not been identified as a High Collision location, has a Road Safety Inspection (IAM-STY-06044) been undertaken and did it identify a safety benefit in providing lighting? (please provide supporting evidence)"]
[]
[null,"If no to both the Network Safety Ranking Process and Road Safety Inspection please state safety work undertaken and benefits that lighting will bring (Please provide supporting evidence):"]
[]
[]
[]
[]
[]
[]
[]
[]
[]
[]
[null,null,null,null,null,null,null,null,"Expected savings per year in injury collissions? (if known)"]
[]
[]
[null,"Section 3 - Accessibility & Integration"]
[]
[null,"Will lighting reduce severance?  Please explain."]
[]
[null,"Impact of proposed lighting on Non Motorised Users (NMU)?"]
[]
[]
[null,"Section 4 - Environment Impact"]
[]
[]
[null,"What environmental assessment has been undertaken and what methods are proposed that will mitigate impact on landscape, townscape and ecology?"]
[]
[]
[]
[]
[]
[]
[]
[]
[]
[]
[]
[null,null,null,null,null,null,null,null,"Environmental Zone (refer to ILP Guidance Note GN01:2011)"]
[null,"Zone","Surrounding","Lighting Environment"]
[null,"E0","Protected","Dark"]
[null,"E1","Natural","Intrinsically Dark"]
[null,"E2","Rural","Low District Brightness"]
[null,"E3","Suburban","Medium District Brightness"]
[null,"E4","Urban","High District Brightness"]
[]
[]
[null,"Section 5 - Economy"]
[]
[null,"Estimated Overall Capital Cost of the Scheme"]
[]
[null,"Estimated Capital Cost attributable to the Lighting Works"]
[null,"As a scheme %"]
[]
[null,"Estimated Annual Maintenance costs per annum?"]
[]
[null,"Estimated Annual Energy Consumption of proposed lighting (kW)"]
[]
[null,"Estimated Cost of Energy per annum"]
[]
[null,null,"If known, please state:",null,null,null,null,"Benefit Cost Ration (BCR)"]
[null,null,null,null,null,null,null,"Net Present Value (NPV)"]
[null,null,null,null,null,null,null,"First Year Rate of Return (FYRR)"]
[null,null,null,null,null,null,null,"Assessment Period (Years)"]
[]
[null,"Section 6 - Any other Supporting Information"]
[]
[]
[null,"Any Stakeholder Consultation and Support?"]
[]
[null,"Are there any other comments you wish to make in support of your application?"]
[]
[]
[null,"Section 7 - Local Authority Contract Details"]
[]
[null,"Local Authority"]
[]
[null,"Contact Details"]
[]
[null,"Primary Contact Details"]
[null,null,"Name"]
[]
[null,null,"Telephone"]
[]
[null,null,"Email"]
[]
[null,null,"Address"]
[]
[]
[null,"Secondary Contact Details"]
[null,null,"Name"]
[]
[null,null,"Telephone"]
[]
[null,null,"Email"]
[]
[null,null,"Address"]
[]
[]
[]
[]
[null,"Assessment Criteria for Marking"]
[null,"poor","No details have been provided",null,null,null,null,null,null,null,0]
[null,"weak","somke details have been provided but the submission lacks any clear evidence and only hints at supporting neutral or positive impact.",null,null,null,null,null,null,null,"1 - 3"]
[null,"fair","There are some impacts that would support the application and there is some evidence to suggest that the aspect has been considered and where lighting would provide either a neutral or postive impact.",null,null,null,null,null,null,null,"4 - 5"]
[null,"good","A resonable level of information has been provided with evidence that clearly shows due consideration has been given to the aspect and lighting will provide a benefit",null,null,null,null,null,null,null,"6 - 7"]
[null,"very good ","The information provides a high degree of confidence that the specific aspect has been fully considered and that the lighting will provide a clear benefit with negligible or no disbenefit.",null,null,null,null,null,null,null,"8 - 9"]
[null,"Excellent","The information provided is extensive and clearly demonstrates that the implementation of lighting will provide a benefit for the subject matter. ",null,null,null,null,null,null,null,10]
[null,"Commentary and Guidance for TII Reviewer"]
[]
[1,"The purpose of the Lighting Appraisal Tool is to capture sufficient information in order to understand and make an informed decision for providing financial support for lighting on the road network from Local Authorities"]
[2,"The Lighting Appraisal Tool is limited in its application and it is not intended to support the decision for the funding of major lighting schemes.  "]
[3,"The intention of this tool is to assist TII in determining funding support when requests from Local Authorities are made and to ensure a consistent and balanced approach when agreeing to funding. "]
[4,"Some applications may be very minor in terms of infrastructure and the extent of information requested could be considered excessive.  The appropriateness of the tool should be assessed on a regular basis and adjustments made to maximise its benefit for all parties."]
[5,"Assessment is based around the following 6 criteria:\n- Technical\n- Safety\n- Accessibility & Integration\n- Environmental\n- Economy (Not Scored)\n- Governmental & Other\n"]
[6,"Not all of the information assessed will be scored against.  Some of the information is requested to help TII understand the request for funding only."]
[7,"The evaluation is based on either YES or No answers or a score given out of 10"]
[8,"For scoring out of 10 an assessment criteria for marking is provided to ensure greater consistency when marking different applications by different TII staff (refer to scoring criteria above)"]
[9,"The lack of good safety evidence will require an applicant to obtain a high score across a few aspects or reasonably well across all of the scored criteria in order to PASS "]
[10,"Weightings have been applied that ensure safety has the highest prominence followed by Accessibility & Integration, Environmental Consideration and other aspects such as Stakeholder support."]
[11,"Safety is the fundamental reason why lighting is provided on the national road network and clear evidence to support this aspect is more likely to ensure the PASS threshold is met"]

{"sheet":"Page 1","index":2,"n_rows":13,"n_cols":30,"rows_kept":13,"cut":false,"hidden":false,"merged":[[9,6,9,8],[11,1,11,9],[7,21,8,28],[7,29,8,29],[9,19,10,20],[9,21,10,28],[9,29,10,29],[7,19,8,20],[4,19,5,20],[4,21,5,28],[4,29,5,29],[6,19,6,20],[0,19,0,29],[1,19,1,20],[1,21,1,28],[2,19,3,20],[2,21,3,28],[2,29,3,29],[6,21,6,28],[0,11,3,17],[1,1,1,9],[3,2,3,9],[6,1,6,9],[8,6,8,8],[5,11,8,17]]}
[null,"Appraisal of Route Lighting Tool",null,null,null,null,null,null,null,null,null,"Application Consideration                                                                                                        In order for the application to be fully evaluated, as much information as possible must be provided. Failure to provide all information will result in a lower evaluated score.",null,null,null,null,null,null,null,"   Assessment Criteria for Marking"]
[null,"Section A - Scheme Overview",null,null,null,null,null,null,null,null,null,null,null,null,null,null,null,null,null,"Poor",null,"No details have been provided",null,null,null,null,null,null,null,0]
[null,null,null,null,null,null,null,null,null,null,null,null,null,null,null,null,null,null,null,"Weak",null,"Some details have been provided but the submission lacks any clear evidence and only hints at supporting a neutral or positive impact. ",null,null,null,null,null,null,null,"1 - 3"]
[null,"Scheme Title",null,null,null,null,null,null,null,null,"*"]
[null,null,null,null,null,null,null,null,null,null,null,null,null,null,null,null,null,null,null,"Fair",null,"There are some aspects that would support the application and there is some evidence to suggest that the aspect has been considered and where lighting would provide either a neutral or beneficial impact.  ",null,null,null,null,null,null,null,"4 - 5"]
[null,"Brief Scheme Description ",null,null,null,null,null,null,null,null,null,"Section A & B – Scheme Overview and Scheme Background\nThe applicant is to provide details of the proposed scheme, it's location and general background information so that TII can understand context when reviewing the application.  \n"]
[null,null,null,null,null,null,null,null,null,null,"*",null,null,null,null,null,null,null,null,"Good",null,"A resonable level of information has been provided with evidence that clearly shows due consideration has been given to the aspect and lighting will provide a benefit.",null,null,null,null,null,null,null,"6-7"]
[null,null,"From",null,null,null,"To",null,null,null,null,null,null,null,null,null,null,null,null,"Very Good",null,"The information provides a high degree of confidence that the specific aspect has been fully considered and that the lighting will provide a clear benefit with negligible or no disbenefit.",null,null,null,null,null,null,null,"8 - 9"]
[null,"ITM co-ordinates",null,null,"*",null,null,null,null,null,"*"]
[null,null,"(Easting)","(Northing)",null,null,"(Easting)",null,null,"(Northing)",null,null,null,null,null,null,null,null,null,"Excellent",null,"The information provided is extensive and clearly demonstrates that the implementation of lighting will provide a benefit for the subject matter. ",null,null,null,null,null,null,null,10]
[null,"Location Map"]
[]
[null,null,null,null,null,null,null,null,"Approx Scheme Length (km)",null,"*"]

{"sheet":"Page 2","index":3,"n_rows":24,"n_cols":12,"rows_kept":24,"cut":false,"hidden":true,"merged":[[0,11,3,17],[23,2,23,9],[1,1,1,9],[7,1,7,9],[11,4,11,9],[15,2,15,9],[17,2,17,9],[21,2,21,9],[19,1,19,5]]}
[null,"Appraisal of Route Lighting Tool",null,null,null,null,null,null,null,null,null,"Section A & B – Scheme Overview and Scheme Background\nThe applicant is to provide details of the proposed scheme, it's location and general background information so that TII can understand context when reviewing the application.  \n"]
[null,"Section A - Scheme Overview (Continued)"]
[]
[null,"Route Number (s)",null,"*",null,null,null,null,"Route Classification",null,"*"]
[]
[null,"Speed Limit",null,"*",null,null,null,null,"AADT Figure",null,"*"]
[]
[null,"Section B - Scheme Background"]
[]
[null,"Is this scheme new or an extension to an earlier scheme?",null,null,null,null,null,null,null,null,"*"]
[]
[null,null,null,"If extension how was earlier scheme funded?"]
[]
[null,"When was this work undertaken?",null,null,null,null,"Qtr/Yr"]
[]
[null,"Describe earlier works undertaken"]
[]
[null,"Why was this lighting not provided under earlier scheme?"]
[]
[null,"Does the scheme impact on non-national roads?",null,null,null,null,null,null,null,null,"*"]
[]
[null,"If Yes, please explain "]
[]
[null,"Have alternatives to lighting been considered? Please explain"]

{"sheet":"Page 3","index":4,"n_rows":27,"n_cols":12,"rows_kept":27,"cut":false,"hidden":true,"merged":[[0,11,3,17],[26,2,26,9],[16,5,16,6],[16,7,16,8],[17,5,17,6],[17,7,17,8],[18,5,18,6],[18,7,18,8],[4,11,11,17],[22,11,23,17]]}
[null,"Appraisal of Route Lighting Tool",null,null,null,null,null,null,null,null,null,"Section 1 – Technical\nThis section is to understand the general approach for the technical aspects of the lighting and provides useful information to TII on what is being proposed on the National road network.\n"]
[null,"Section 1 - Technical"]
[]
[null,"Has a Lighting Design been undertaken?",null,null,null,null,null,null,null,null,"*"]
[null,null,null,null,null,null,null,null,null,null,null,"The requirements for road lighting are set out in DN-LHT-03038 - Design of Road Lighting for the National Road Network.  Local Authorities shall take cognisance of these requirements when implementing lighting on the National Road network."]
[null,"What is the Proposed Lighting Class (BS 5489-1:2013)?",null,null,null,null,null,null,null,null,"*"]
[]
[null,"Proposed Luminaire Type",null,null,null,null,null,null,null,null,"*"]
[]
[null,"Will the lighting be metered or unmetered?",null,null,null,null,null,null,null,null,"*"]
[]
[null,"Expected periods of lighting operation",null,null,null,null,null,null,null,null,"*"]
[]
[null,"Will dimming be applied?  ",null,null,null,null,null,null,null,null,"*"]
[]
[null,null,null,null,null,"From",null,"To",null,"% Dimming"]
[null,null,null,null,"If yes, please state dimming levels and periods"]
[]
[]
[]
[null,"Will lighting be installed within the clear zone?",null,null,null,null,null,null,null,null,"*"]
[]
[null,"Can it be moved outside of clear zone?",null,null,null,null,null,null,null,null,"*","Information relating to clear zones can be found in DN-REQ-03034 Safety Barriers (including Amendement No 1, dated January 2016)"]
[]
[null,"Will passive safe lighting columns be provided?",null,null,null,null,null,null,null,null,"*"]
[]
[null,"State any other relevant technical details "]

{"sheet":"Page 4","index":5,"n_rows":31,"n_cols":12,"rows_kept":31,"cut":false,"hidden":true,"merged":[[0,11,13,21],[19,1,19,7],[21,1,28,9],[2,2,2,9],[3,1,3,7],[13,1,13,7],[15,1,15,7],[17,1,17,7],[4,7,4,8],[4,5,4,6],[5,5,5,6],[5,7,5,8],[7,3,7,8],[6,1,10,2]]}
[null,"Appraisal of Route Lighting Tool",null,null,null,null,null,null,null,null,null,"Section 2 – Safety\nLighting is used as a safety measure on the National Road Network and it's primary purpose is to reduce collisions in the hours of darkness.\nHistorically, it was considered that implementing lighting reduced night time collisions by 30% but recent research undertaken indicates that savings are significantly less than the historical figure. Whilst lighting can provide safety benefits it can also have adverse effects on nearby receptors and the surrounds and its introduction needs careful consideration. TII are seeking documented evidence to support the fact that lighting would as an intervention reduce collisons in the hours of darkness and that some form of assessment has been undertaken that would support this.  This can be in the form of assessment under the Network Safety Ranking Process (GE-STY-01022) or other method of road safety inspection or assessment. It should also be noted that the provision of lighting may not be the most cost effective method of reducing night time accident rates and that improvements to road alignment, improvements in carriageway markings, delineation of traffic and signing may offer a better solution.\n"]
[null,"Section 2 - Safety"]
[]
[null,"Has this site been identified as a High Collision location under the Network Safety Ranking Process (GE-STY-01022)?",null,null,null,null,null,null,null,null,"*"]
[]
[null,null,null,null,null," ",null,"       site ID"]
[null,"Collission rates are available from  https://data.gov.ie/organization/transport-infrastructure-ireland"]
[null,null,null,"Average Collision Rate  for this type of road"]
[]
[null,null,null,null,null,null,null,null,"Site Collision Rate "]
[]
[]
[]
[null,"If the GE-STY-01022 process has not been fully undertaken please state status of review"]
[]
[null,"Did the GE-STY-01022 process identify that lighting as an intervention will reduce collisions?"]
[]
[null,"If site has not been identified as a High Collision location, has a Road Safety Inspection (IAM-STY-06044) been undertaken and did it identify a safety benefit in providing lighting? (please provide supporting evidence)",null,null,null,null,null,null,null,null,"*"]
[]
[null,"If no to both the Network Safety Ranking Process and Road Safety Inspection please state safety work undertaken and benefits that lighting will bring (Please provide supporting evidence):"]
[]
[]
[]
[]
[]
[]
[]
[]
[]
[]
[null,null,null,null,null,null,null,null,"Expected savings per year in injury collissions? (if known)",45]

{"sheet":"Page 5","index":6,"n_rows":6,"n_cols":12,"rows_kept":6,"cut":false,"hidden":true,"merged":[[1,1,1,10],[2,2,2,9],[3,2,3,9],[5,2,5,9],[0,11,3,17]]}
[null,"Appraisal of Route Lighting Tool",null,null,null,null,null,null,null,null,null,"Section 3 – Accessibility & Integration\nIt is accepted that safety, whilst the primary reason for lighting on the National road network, is not the only reason to be considered when introducing lighting. \nThe applicants should clearly state where lighting will help reduce severance, provide benefits for NMUs particularly in support of encouraging physical fitness, support ‘greener’ methods of commuting.\nThe applicant should clearly set out why lighting is considered to provide benefits and provide any evidence of support or statistics to support the provision of public lighting.\n\n"]
[null,"Section 3 - Accessibility & Integration"]
[]
[null,"Will lighting reduce severance?  Please explain.",null,null,null,null,null,null,null,null,"*"]
[]
[null,"Impact of proposed lighting on Non Motorised Users (NMU)?",null,null,null,null,null,null,null,null,"*"]

{"sheet":"Page 6","index":7,"n_rows":23,"n_cols":12,"rows_kept":23,"cut":false,"hidden":true,"merged":[[1,1,1,10],[4,2,14,9],[0,11,6,20]]}
[null,"Appraisal of Route Lighting Tool",null,null,null,null,null,null,null,null,null,"Section 4 – Environmental Impact\nThe introduction of lighting can have adverse impact on the environment.\nIn particular, this can be in areas where the surrounds are intrinsically dark or have low district brightness and the introduction of lighting in villages and relatively dark outer locations will have an impact and lead to ‘light sprawl’.\nA move from an unlit area into a lit area may have implications on local flora and fauna. TII are seeking to understand that the impact of introducing lighting in environmental terms have been considered and adverse effects are clearly understood.  Local Authorities should clearly state environmental assessments that have been undertaken and provide assurance that the introduction of lighting will not have detrimental effects on the nearby receptors.\n"]
[null,"Section 4 - Environment Impact"]
[]
[]
[null,"What environmental assessment has been undertaken and what methods are proposed that will mitigate impact on landscape, townscape and ecology?",null,null,null,null,null,null,null,null,"*"]
[]
[]
[]
[]
[]
[]
[]
[]
[]
[]
[]
[null,null,null,null,null,null,null,null,"Environmental Zone (refer to ILP Guidance Note GN01:2011)",null,"*"]
[null,"Zone","Surrounding","Lighting Environment"]
[null,"E0","Protected","Dark"]
[null,"E1","Natural","Intrinsically Dark"]
[null,"E2","Rural","Low District Brightness"]
[null,"E3","Suburban","Medium District Brightness"]
[null,"E4","Urban","High District Brightness"]

{"sheet":"Page 7","index":8,"n_rows":25,"n_cols":12,"rows_kept":25,"cut":false,"hidden":true,"merged":[[1,1,1,9],[19,1,19,10],[22,2,22,9],[24,2,24,9],[0,11,3,17],[19,11,23,18]]}
[null,"Appraisal of Route Lighting Tool",null,null,null,null,null,null,null,null,null,"Section 5 – Economy\nTII need to understand the funding that Local Authorities are seeking for lighting both in terms of capital and revenue costs.  BCR, NPV assessment if known and applicable should be provided but is not mandatory for the purposes of the application.\n\n"]
[null,"Section 5 - Economy"]
[]
[null,"Estimated Overall Capital Cost of the Scheme",null,null,null,null,null,null,null,null,"*"]
[]
[null,"Estimated Capital Cost attributable to the Lighting Works",null,null,null,null,null,null,null,null,"*"]
[null,null,null,null,null,"as a scheme %",null,null,null,null,"*"]
[]
[null,"Estimated Annual Maintenance costs per annum?",null,null,null,null,null,null,null,null,"*"]
[]
[null,"Estimated Annual Energy Consumption of proposed lighting (kW)",null,null,null,null,null,null,null,null,"*"]
[]
[null,"Estimated Cost of Energy per annum",null,null,null,null,null,null,null,null,"*"]
[]
[null,"If known, please state:",null,null,null,null,null,"Benefit Cost Ration (BCR)"]
[null,null,null,null,null,null,null,"Net Present Value (NPV)"]
[null,null,null,null,null,null,null,"First Year Rate of Return % (FYRR)"]
[null,null,null,null,null,null,null,"Assessment Period (Years)"]
[]
[null,"Section 6 - Any other Supporting Information",null,null,null,null,null,null,null,null,null,"Section 6 – Any supporting Information\nThe earlier section should capture most of the information relating to introducing lighting that will help ensure a balanced assessment is given when TII consider an application for the provision of public lighting.  \nIt is accepted that there may be other considerations, particularly other supporting evidence from community groups that support and provide justification for introducing lighting.  The applicant should use this section to include these details.\n"]
[]
[]
[null,"Any Stakeholder Consultation and Support?",null,null,null,null,null,null,null,null,"*"]
[]
[null,"Are there any other comments you wish to make in support of your application?",null,null,null,null,null,null,null,null,"*"]

{"sheet":"Page 8","index":9,"n_rows":1103,"n_cols":11,"rows_kept":1103,"cut":false,"hidden":true,"merged":[[24,3,26,9],[10,3,10,9],[1,1,1,9],[3,3,3,9],[8,3,8,9],[12,3,12,9],[22,3,22,9],[18,3,18,9],[20,3,20,9],[14,3,16,9]]}
[null,"Appraisal of Route Lighting Tool"]
[null,"Section 7 - Local Authority Contact Details"]
[]
[null,"Local Authority",null,null,null,null,null,null,null,null,"*"]
[]
[null,"Contact Details"]
[]
[null,"Primary Contact Details"]
[null,null,"Name",null,null,null,null,null,null,null,"*"]
[]
[null,null,"Telephone",null,null,null,null,null,null,null,"*"]
[]
[null,null,"Email",null,null,null,null,null,null,null,"*"]
[]
[null,null,"Address",null,null,null,null,null,null,null,"*"]
[]
[]
[null,"Secondary Contact Details"]
[null,null,"Name"]
[]
[null,null,"Telephone"]
[]
[null,null,"Email"]
[]
[null,null,"Address"]
[]
[]
[]
[]
[]
[]
[]
[]
[]
[]
[]
[]
[]
[]
[]
[]
[]
[]
[]
[]
[]
[]
[]
[]
[]
[]
[]
[]
[]
[]
[]
[]
[]
[]
[]
[]
[]
[]
[]
[]
[]
[]
[]
[]
[]
[]
[]
[]
[]
[]
[]
[]
[]
[]
[]
[]
[]
[]
[]
[]
[]
[]
[]
[]
[]
[]
[]
[]
[]
[]
[]
[]
[]
[]
[]
[]
[]
[]
[]
[]
[]
[]
[]
[]
[]
[]
[]
[]
[]
[]
[]
[]
[]
[]
[]
[]
[]
[]
[]
[]
[]
[]
[]
[]
[]
[]
[]
[]
[]
[]
[]
[]
[]
[]
[]
[]
[]
[]
[]
[]
[]
[]
[]
[]
[]
[]
[]
[]
[]
[]
[]
[]
[]
[]
[]
[]
[]
[]
[]
[]
[]
[]
[]
[]
[]
[]
[]
[]
[]
[]
[]
[]
[]
[]
[]
[]
[]
[]
[]
[]
[]
[]
[]
[]
[]
[]
[]
[]
[]
[]
[]
[]
[]
[]
[]
[]
[]
[]
[]
[]
[]
[]
[]
[]
[]
[]
[]
[]
[]
[]
[]
[]
[]
[]
[]
[]
[]
[]
[]
[]
[]
[]
[]
[]
[]
[]
[]
[]
[]
[]
[]
[]
[]
[]
[]
[]
[]
[]
[]
[]
[]
[]
[]
[]
[]
[]
[]
[]
[]
[]
[]
[]
[]
[]
[]
[]
[]
[]
[]
[]
[]
[]
[]
[]
[]
[]
[]
[]
[]
[]
[]
[]
[]
[]
[]
[]
[]
[]
[]
[]
[]
[]
[]
[]
[]
[]
[]
[]
[]
[]
[]
[]
[]
[]
[]
[]
[]
[]
[]
[]
[]
[]
[]
[]
[]
[]
[]
[]
[]
[]
[]
[]
[]
[]
[]
[]
[]
[]
[]
[]
[]
[]
[]
[]
[]
[]
[]
[]
[]
[]
[]
[]
[]
[]
[]
[]
[]
[]
[]
[]
[]
[]
[]
[]
[]
[]
[]
[]
[]
[]
[]
[]
[]
[]
[]
[]
[]
[]
[]
[]
[]
[]
[]
[]
[]
[]
[]
[]
[]
[]
[]
[]
[]
[]
[]
[]
[]
[]
[]
[]
[]
[]
[]
[]
[]
[]
[]
[]
[]
[]
[]
[]
[]
[]
[]
[]
[]
[]
[]
[]
[]
[]
[]
[]
[]
[]
[]
[]
[]
[]
[]
[]
[]
[]
[]
[]
[]
[]
[]
[]
[]
[]
[]
[]
[]
[]
[]
[]
[]
[]
[]
[]
[]
[]
[]
[]
[]
[]
[]
[]
[]
[]
[]
[]
[]
[]
[]
[]
[]
[]
[]
[]
[]
[]
[]
[]
[]
[]
[]
[]
[]
[]
[]
[]
[]
[]
[]
[]
[]
[]
[]
[]
[]
[]
[]
[]
[]
[]
[]
[]
[]
[]
[]
[]
[]
[]
[]
[]
[]
[]
[]
[]
[]
[]
[]
[]
[]
[]
[]
[]
[]
[]
[]
[]
[]
[]
[]
[]
[]
[]
[]
[]
[]
[]
[]
[]
[]
[]
[]
[]
[]
[]
[]
[]
[]
[]
[]
[]
[]
[]
[]
[]
[]
[]
[]
[]
[]
[]
[]
[]
[]
[]
[]
[]
[]
[]
[]
[]
[]
[]
[]
[]
[]
[]
[]
[]
[]
[]
[]
[]
[]
[]
[]
[]
[]
[]
[]
[]
[]
[]
[]
[]
[]
[]
[]
[]
[]
[]
[]
[]
[]
[]
[]
[]
[]
[]
[]
[]
[]
[]
[]
[]
[]
[]
[]
[]
[]
[]
[]
[]
[]
[]
[]
[]
[]
[]
[]
[]
[]
[]
[]
[]
[]
[]
[]
[]
[]
[]
[]
[]
[]
[]
[]
[]
[]
[]
[]
[]
[]
[]
[]
[]
[]
[]
[]
[]
[]
[]
[]
[]
[]
[]
[]
[]
[]
[]
[]
[]
[]
[]
[]
[]
[]
[]
[]
[]
[]
[]
[]
[]
[]
[]
[]
[]
[]
[]
[]
[]
[]
[]
[]
[]
[]
[]
[]
[]
[]
[]
[]
[]
[]
[]
[]
[]
[]
[]
[]
[]
[]
[]
[]
[]
[]
[]
[]
[]
[]
[]
[]
[]
[]
[]
[]
[]
[]
[]
[]
[]
[]
[]
[]
[]
[]
[]
[]
[]
[]
[]
[]
[]
[]
[]
[]
[]
[]
[]
[]
[]
[]
[]
[]
[]
[]
[]
[]
[]
[]
[]
[]
[]
[]
[]
[]
[]
[]
[]
[]
[]
[]
[]
[]
[]
[]
[]
[]
[]
[]
[]
[]
[]
[]
[]
[]
[]
[]
[]
[]
[]
[]
[]
[]
[]
[]
[]
[]
[]
[]
[]
[]
[]
[]
[]
[]
[]
[]
[]
[]
[]
[]
[]
[]
[]
[]
[]
[]
[]
[]
[]
[]
[]
[]
[]
[]
[]
[]
[]
[]
[]
[]
[]
[]
[]
[]
[]
[]
[]
[]
[]
[]
[]
[]
[]
[]
[]
[]
[]
[]
[]
[]
[]
[]
[]
[]
[]
[]
[]
[]
[]
[]
[]
[]
[]
[]
[]
[]
[]
[]
[]
[]
[]
[]
[]
[]
[]
[]
[]
[]
[]
[]
[]
[]
[]
[]
[]
[]
[]
[]
[]
[]
[]
[]
[]
[]
[]
[]
[]
[]
[]
[]
[]
[]
[]
[]
[]
[]
[]
[]
[]
[]
[]
[]
[]
[]
[]
[]
[]
[]
[]
[]
[]
[]
[]
[]
[]
[]
[]
[]
[]
[]
[]
[]
[]
[]
[]
[]
[]
[]
[]
[]
[]
[]
[]
[]
[]
[]
[]
[]
[]
[]
[]
[]
[]
[]
[]
[]
[]
[]
[]
[]
[]
[]
[]
[]
[]
[]
[]
[]
[]
[]
[]
[]
[]
[]
[]
[]
[]
[]
[]
[]
[]
[]
[]
[]
[]
[]
[]
[]
[]
[]
[]
[]
[]
[]
[]
[]
[]
[]
[]
[]
[]
[]
[]
[]
[]
[]
[]
[]
[]
[]
[]
[]
[]
[]
[]
[]
[]
[]
[]
[]
[]
[]
[]
[]
[]
[]
[]
[]
[]
[]
[]
[]
[]
[]
[]
[]
[]
[]
[]
[]
[]
[]
[]
[]
[]
[]
[]
[]
[]
[]
[]
[]
[]
[]
[]
[]
[]
[]
[]
[]
[]
[]
[]
[]
[]
[]
[]
[]
[]
[]
[]
[]
[]
[]
[]
[]
[]
[]
[]
[]
[]
[]
[]
[]
[]
[]
[]
[]
[]
[]
[]
[]
[]
[]
[]
[]
[]
[]
[]
[]
[]
[]
[]
[]
[]
[]
[]
[]
[]
[]
[]
[]
[]
[]
[]
[]
[]
[]
[true]

{"sheet":"Scorecard","index":10,"n_rows":52,"n_cols":25,"rows_kept":52,"cut":false,"hidden":true,"merged":[[46,3,46,4],[0,7,0,8],[0,0,0,5],[40,3,40,4],[31,3,31,4],[35,3,35,4],[22,3,22,4],[14,3,14,4],[8,3,8,4],[2,3,2,4],[37,1,37,4],[47,10,50,20],[46,10,46,20],[1,11,1,20],[7,12,7,13],[7,18,7,19],[14,10,14,20],[22,10,22,20],[15,10,21,20],[23,10,30,20],[32,10,34,20],[36,10,39,20],[41,10,45,20],[31,10,31,20],[35,10,35,20],[40,10,40,20]]}
["Appraisal of Route Lighting - Score Calculator",null,null,null,null,null,null,null,null,null,null,"Appraisal of Route Lighting Tool"]
[null,"Section",null,null,null,"Evaluation","Points","Weighting","Score",null,null,"Section 9 - (For internal TII use only)",null,null,null,null,null,null,null,null,null,null,null,0,"Approved"]
[null,"Section A",null,null,null,null,null,null,null,null,null,null,null,null,null,null,null,null,null,null,null,null,null,1,"Refused "]
[null,null,null,null,null,null,null,null,null,null,null,"Submission Date by Authority",null,null,null,null,null,null,null,null,null,null,null,2,"Rejected"]
[null,"Not Scored",null,null,null,null,null,null,null,null,null,null,null,null,null,null,null,null,null,null,null,null,null,3]
[null,null,null,null,null,null,null,null,null,null,null,null,null,null,null,null,"TII Approval ",null,null,null,null,null,null,4]
[null,null,null,null,null,null,null,null,null,null,null,null,null,null,null,null,"Date",null,null,null,null,null,null,5]
[null,null,null,null,null,null,null,null,null,null,null,"Name:",null,null,null,"Signature",null,null,null,null,null,null,null,6]
[null,"Section B",null,null,null,null,null,null,null,null,null,null,null,null,null,null,null,null,null,null,null,null,null,7]
[null,null,null,null,null,null,null,null,null,null,null,null,null,null,null,null,null,null,null,null,null,null,null,8]
[null,"Not Scored",null,null,null,null,null,null,null,null,null,null,null,null,null,null,null,null,null,null,null,null,null,9]
[null,null,null,null,null,null,null,null,null,null,null,null,null,null,null,null,null,null,null,null,null,null,null,10]
[]
[]
[null,"Section 1 ",null,"Technical",null,null,null,null,null,null,"Section 1                                                    Reviewers Comments"]
[null,"Has a Lighting Design been undertaken?",null,null,null,{"$f":"IF(Application!J43=\"Yes\",TRUE,FALSE)","v":false},{"$f":"IF(F16=FALSE,0,1)","v":0},1,{"$f":"G16*H16","v":0}]
[null,"Has a Lighting Class been determined?",null,null,null,{"$f":"IF(Application!J45<>\"\",TRUE,FALSE)","v":false},{"$f":"IF(F17=FALSE,0,1)","v":0},1,{"$f":"G17*H17","v":0}]
[null,"Will dimming be applied?  ",null,null,null,{"$f":"IF(Application!J53=\"Yes\",TRUE,FALSE)","v":false},{"$f":"IF(F18=FALSE,0,1)","v":0},3,{"$f":"G18*H18","v":0}]
[]
[]
[]
[]
[null,"Section 2",null,"Safety",null,null,null,null,null,null,"Section 2                                                    Reviewers Comments"]
[null,"Has the location been identified as a high collision site?",null,null,null,{"$f":"IF(Application!J71=\"Yes\",TRUE,FALSE)","v":false},{"$f":"IF(F24=FALSE,0,1)","v":0}]
[null,"Did the assessment identify that lighting as an intervention will reduce collisions?",null,null,null,{"$f":"IF(Application!J83=\"Yes\",TRUE,FALSE)","v":false},{"$f":"IF(F25=FALSE,0,1)","v":0},200,{"$f":"(G25*H25)*G24","v":0}]
[]
[null,"Road Safety Inspection undertaken and safety benefit in providing lighting?",null,null,null,{"$f":"IF(Application!J85=\"Yes\",TRUE,FALSE)","v":false},{"$f":"IF(F27=FALSE,0,1)","v":0},50,{"$f":"(G27*H27)","v":0}]
[]
[null,"What other safety assessment work has been undertaken?",null,null,null,null,{"$f":"F29","v":0},16.66667,{"$f":"G29*H29","v":0}]
[]
[]
[null,"Section 3",null,"Accessibility & Integration",null,null,null,null,null,null,"Section 3                                                    Reviewers Comments"]
[null,"Will lighting reduce severance? ",null,null,null,null,{"$f":"F33","v":0},5,{"$f":"H33*G33","v":0}]
[null,"Impact of proposed lighting on NMUs",null,null,null,null,{"$f":"F34","v":0},5,{"$f":"H34*G34","v":0}]
[]
[null,"Section 4",null,"Environmental Impact",null,null,null,null,null,null,"Section 4                                                    Reviewers Comments"]
[]
[null,"What environmental assessment have been undertaken and what methods are proposed that will mitigate impact on landscape, townscape and ecology?",null,null,null,null,{"$f":"F38","v":0},2,{"$f":"G38*H38","v":0}]
[]
[]
[null,"Section 5",null,"Economy",null,null,null,null,null,null,"Section 5                                                    Reviewers Comments"]
[]
[null,"Not Assessed"]
[]
[]
[]
[null,"Section 6",null,"Governmental Policy & Other ",null,null,null,null,null,null,"Section 6                                                    Reviewers Comments"]
[null,"Any Stakeholder Consultation & Support",null,null,null,null,{"$f":"F48","v":0},1,{"$f":"H48*G48","v":0}]
[null,"An other Supporting Comments?",null,null,null,null,0,1,{"$f":"H49*G49","v":0}]
[]
[]
[null,null,null,null,null,null,"Total",null,{"$f":"SUM(Scorecard!$I$3:$I$51)","v":0}]

{"sheet":"Commentary","index":11,"n_rows":35,"n_cols":2,"rows_kept":35,"cut":false,"hidden":true,"merged":[]}
[]
["Commentary and guidance for TII reviewer"]
[]
[]
[]
[1,"The purpose of the Lighting Appraisal Tool is to capture sufficient information in order to understand and make an informed decision for providing financial support for lighting on the road network from Local Authorities"]
[]
[2,"The Lighting Appraisal Tool is limited in its application and it is not intended to support the decision for the funding of major lighting schemes.  "]
[]
[3,"The intention of this tool is to assist TII in determining funding support when requests from Local Authorities are made and to ensure a consistent and balanced approach when agreeing to funding. "]
[]
[4,"Some applications may be very minor in terms of infrastruture and the extent of information requested could be considered excessive.  The appropriateness of the tool should be assessed on a regular basis and adjustments made to maximise its benefit for all parties."]
[]
[5,"Assessment is based the following around 6 criteria:"]
[]
[null,"- Technical"]
[null,"- Safety"]
[null,"- Accessibility & Intergration"]
[null,"- Environmental"]
[null,"- Economy (Not Scored)"]
[null,"- Governmental & Other"]
[]
[6,"Not all of the information assessed will be scored against.  Some of the information is requested to help TII understand the request for funding only."]
[]
[7,"The evaluaton is based on either YES or No answers or a score given out of 10"]
[]
[8,"For scoring out of 10 an assessement criteria for marking is provided to ensure greater consistency when marking different applications by different TII staff (refer to scoring criteria tab)"]
[]
[9,"The lack of good safety evidence will require an applicant to obtain a high score across a few aspects or reasonably well across all of the socred criteria in order to PASS "]
[]
[10,"Safety is the fundermental reason why lighting is provided on the national road network and clear evidence to support this aspect is more liekly to ensure the PASS threshold is met."]
[]
[11,"Weightings have been applied that ensure safety has the highest prominance followed by Accessibility & Integration, Environmental Consideration and other aspects such as Stakeholder support."]
[]
[12,"A score of 100 is required to ensure a PASS.  "]

{"sheet":"Scoring Criteria","index":12,"n_rows":11,"n_cols":15,"rows_kept":11,"cut":false,"hidden":true,"merged":[[10,7,10,14],[8,2,8,13],[3,2,3,13],[4,2,4,13],[5,2,5,13],[6,2,6,13],[7,2,7,13]]}
[null,"Assessment Criteria for Marking"]
[]
[]
[null,"Poor","No details have been provided",null,null,null,null,null,null,null,null,null,null,null,"0"]
[null,"Weak","Some details have been provided but the submission lacks any clear evidence and only hints at supporting a neutral or positive impact. ",null,null,null,null,null,null,null,null,null,null,null,"1-3"]
[null,"Fair","There are some aspects that would support the application and there is some evidence to suggest that the aspect has been considered and where lighting would provide either a neutral or beneficial impact.  ",null,null,null,null,null,null,null,null,null,null,null,"4-5"]
[null,"Good","A resonable level of information has been provided with evidence that clearly shows due consideration has been given to the aspect and lighting will provide a benefit.",null,null,null,null,null,null,null,null,null,null,null,"6-7"]
[null,"Very Good","The information provides a high degree of confidence that the specific aspect has been fully considered and that the lighting will provide a clear benefit with negligible or no disbenefit.",null,null,null,null,null,null,null,null,null,null,null,"8-9"]
[null,"Excellent","The information provided is extensive and clearly demonstrates that the implementation of lighting will provide a benefit for the subject matter. ",null,null,null,null,null,null,null,null,null,null,null,"10"]
[]
[null,null,null,null,null,null,null,"Note: Applicants must achieve a score greater than 100 in order to receive approval"]

{"sheet":"Data","index":13,"n_rows":1111,"n_cols":24,"rows_kept":1111,"cut":false,"hidden":true,"merged":[]}
["Yes","Motorway","To Be Deterimined","Metered","LED","Zone E1","Adverse","Additional","New","No",0,600,"Carlow","LED","E0",10,null,"Approved",null,"None",null,null,"To Be Determined","0-5000"]
["No","Rural Dual Carriagway","M1/ME1","Unmetered","SON ","Zone E2","Slightly Adverse","Removal","Extended","N/A",1,400,"Cavan","Other","E1",20,null,"Refused",null,"Not Identified for Review",null,null,"D2D","5000-10000"]
["To Be Determined","Urban dual Carriageway","M2/ME2","To Be Determined","SOX","Zone E3","Neutral",null,null,null,2,250,"Clare",null,"E2",30,null,"Rejected",null,"Review In Process",null,null,"D2M","10000-20000"]
[null,"Rural Two Lane (Single Carriageway)","M3/ME3",null,"MH","Zone E4","Slightly Beneficial",null,null,null,3,150,"Cork City",null,"E3",40,null,null,null,"Scheme Proposed",null,null,"70/35 Lux","20000+"]
["Pass","Urban Two Lane (Single Carriageway)","M4/ME4",null,"Other",null,"Beneficial",null,null,null,4,180,"Cork County",null,"E4",50,null,null,null,"Initial Desktop Study",null,null,"55/28 Lux"]
["Fail",null,"M5/ME5",null,"To Be Determined",null,null,null,null,null,5,135,"Donegal",null,null,60,null,null,null,"Detailed Desk Study",null,null,"35/35 Lux"]
[null,null,"M/6ME6",null,null,null,null,null,null,null,6,100,"Dublin City",null,null,70,null,null,null,"Site Assessment",null,null,"35/18 Lux"]
[null,null,"S1",null,null,null,null,null,null,null,7,90,"Dun Laoghaire Rathdown",null,null,80,null,null,null,"Problem Definition",null,null,"20/20 Lux"]
["Yes",null,"S2",null,null,null,null,null,null,null,8,70,"Fingal",null,null,90,null,null,null,"Measures to Resolve",null,null,"PNSO"]
["No",null,"S3",null,null,null,null,null,null,null,9,55,"Galway City",null,null,100,null,null,null,null,null,null,"Time Switch"]
["N/A",null,"S4",null,null,null,null,null,null,null,10,"Other","Galway County",null,null,110,null,null,null,null,null,null,"CMS"]
[null,null,"S5",null,null,null,null,null,null,null,11,null,"Kerry",null,null,120]
[null,null,"S6",null,null,null,null,null,null,null,12,null,"Kildare"]
[null,null,"P1",null,null,null,null,null,null,null,13,null,"Kilkenny"]
[null,null,"P2",null,null,null,null,null,null,null,14,null,"Laois"]
[null,null,"P3",null,null,null,null,null,null,null,15,null,"Leitrim"]
[null,null,"P4",null,null,null,null,null,null,null,16,null,"Limerick"]
[null,null,"P5",null,null,null,null,null,null,null,17,null,"Longford"]
[null,null,"P6",null,null,null,null,null,null,null,18,null,"Louth"]
[null,null,"CE0",null,null,null,null,null,null,null,19,null,"Mayo"]
[null,null,"CE1",null,null,null,null,null,null,null,20,null,"Meath"]
[null,null,"CE2",null,null,null,null,null,null,null,21,null,"Monaghan"]
[null,null,"CE3",null,null,null,null,null,null,null,22,null,"Offaly"]
[null,null,"CE4",null,null,null,null,null,null,null,23,null,"Roscommon"]
[null,null,"CE5",null,null,null,null,null,null,null,24,null,"Sligo"]
[null,null,null,null,null,null,null,null,null,null,25,null,"South Dublin"]
[null,null,null,null,null,null,null,null,null,null,26,null,"Tipperary"]
[null,null,null,null,null,null,null,null,null,null,27,null,"Waterford"]
[null,null,null,null,null,null,null,null,null,null,28,null,"Westmeath"]
[null,null,null,null,null,null,null,null,null,null,29,null,"Wexford"]
[null,null,null,null,null,null,null,null,null,null,30,null,"Wicklow"]
[null,null,null,null,null,null,null,null,null,null,31]
[null,null,null,null,null,null,null,null,null,null,32]
[null,null,null,null,null,null,null,null,null,null,33]
[null,null,null,null,null,null,null,null,null,null,34]
[null,null,null,null,null,null,null,null,null,null,35]
[null,null,null,null,null,null,null,null,null,null,36]
[null,null,null,null,null,null,null,null,null,null,37]
[null,null,null,null,null,null,null,null,null,null,38]
[null,null,null,null,null,null,null,null,null,null,39]
[null,null,null,null,null,null,null,null,null,null,40]
[null,null,null,null,null,null,null,null,null,null,41]
[null,null,null,null,null,null,null,null,null,null,42]
[null,null,null,null,null,null,null,null,null,null,43]
[null,null,null,null,null,null,null,null,null,null,44]
[null,null,null,null,null,null,null,null,null,null,45]
[null,null,null,null,null,null,null,null,null,null,46]
[null,null,null,null,null,null,null,null,null,null,47]
[null,null,null,null,null,null,null,null,null,null,48]
[null,null,null,null,null,null,null,null,null,null,49]
[null,null,null,null,null,null,null,null,null,null,50]
[null,null,null,null,null,null,null,null,null,null,51]
[null,null,null,null,null,null,null,null,null,null,52]
[null,null,null,null,null,null,null,null,null,null,53]
[null,null,null,null,null,null,null,null,null,null,54]
[null,null,null,null,null,null,null,null,null,null,55]
[null,null,null,null,null,null,null,null,null,null,56]
[null,null,null,null,null,null,null,null,null,null,57]
[null,null,null,null,null,null,null,null,null,null,58]
[null,null,null,null,null,null,null,null,null,null,59]
[null,null,null,null,null,null,null,null,null,null,60]
[null,null,null,null,null,null,null,null,null,null,61]
[null,null,null,null,null,null,null,null,null,null,62]
[null,null,null,null,null,null,null,null,null,null,63]
[null,null,null,null,null,null,null,null,null,null,64]
[null,null,null,null,null,null,null,null,null,null,65]
[null,null,null,null,null,null,null,null,null,null,66]
[null,null,null,null,null,null,null,null,null,null,67]
[null,null,null,null,null,null,null,null,null,null,68]
[null,null,null,null,null,null,null,null,null,null,69]
[null,null,null,null,null,null,null,null,null,null,70]
[null,null,null,null,null,null,null,null,null,null,71]
[null,null,null,null,null,null,null,null,null,null,72]
[null,null,null,null,null,null,null,null,null,null,73]
[null,null,null,null,null,null,null,null,null,null,74]
[null,null,null,null,null,null,null,null,null,null,75]
[null,null,null,null,null,null,null,null,null,null,76]
[null,null,null,null,null,null,null,null,null,null,77]
[null,null,null,null,null,null,null,null,null,null,78]
[null,null,null,null,null,null,null,null,null,null,79]
[null,null,null,null,null,null,null,null,null,null,80]
[null,null,null,null,null,null,null,null,null,null,81]
[null,null,null,null,null,null,null,null,null,null,82]
[null,null,null,null,null,null,null,null,null,null,83]
[null,null,null,null,null,null,null,null,null,null,84]
[null,null,null,null,null,null,null,null,null,null,85]
[null,null,null,null,null,null,null,null,null,null,86]
[null,null,null,null,null,null,null,null,null,null,87]
[null,null,null,null,null,null,null,null,null,null,88]
[null,null,null,null,null,null,null,null,null,null,89]
[null,null,null,null,null,null,null,null,null,null,90]
[null,null,null,null,null,null,null,null,null,null,91]
[null,null,null,null,null,null,null,null,null,null,92]
[null,null,null,null,null,null,null,null,null,null,93]
[null,null,null,null,null,null,null,null,null,null,94]
[null,null,null,null,null,null,null,null,null,null,95]
[null,null,null,null,null,null,null,null,null,null,96]
[null,null,null,null,null,null,null,null,null,null,97]
[null,null,null,null,null,null,null,null,null,null,98]
[null,null,null,null,null,null,null,null,null,null,99]
[null,null,null,null,null,null,null,null,null,null,100]
[null,null,null,null,null,null,null,null,null,null,101]
[null,null,null,null,null,null,null,null,null,null,102]
[null,null,null,null,null,null,null,null,null,null,103]
[null,null,null,null,null,null,null,null,null,null,104]
[null,null,null,null,null,null,null,null,null,null,105]
[null,null,null,null,null,null,null,null,null,null,106]
[null,null,null,null,null,null,null,null,null,null,107]
[null,null,null,null,null,null,null,null,null,null,108]
[null,null,null,null,null,null,null,null,null,null,109]
[null,null,null,null,null,null,null,null,null,null,110]
[null,null,null,null,null,null,null,null,null,null,111]
[null,null,null,null,null,null,null,null,null,null,112]
[null,null,null,null,null,null,null,null,null,null,113]
[null,null,null,null,null,null,null,null,null,null,114]
[null,null,null,null,null,null,null,null,null,null,115]
[null,null,null,null,null,null,null,null,null,null,116]
[null,null,null,null,null,null,null,null,null,null,117]
[null,null,null,null,null,null,null,null,null,null,118]
[null,null,null,null,null,null,null,null,null,null,119]
[null,null,null,null,null,null,null,null,null,null,120]
[null,null,null,null,null,null,null,null,null,null,121]
[null,null,null,null,null,null,null,null,null,null,122]
[null,null,null,null,null,null,null,null,null,null,123]
[null,null,null,null,null,null,null,null,null,null,124]
[null,null,null,null,null,null,null,null,null,null,125]
[null,null,null,null,null,null,null,null,null,null,126]
[null,null,null,null,null,null,null,null,null,null,127]
[null,null,null,null,null,null,null,null,null,null,128]
[null,null,null,null,null,null,null,null,null,null,129]
[null,null,null,null,null,null,null,null,null,null,130]
[null,null,null,null,null,null,null,null,null,null,131]
[null,null,null,null,null,null,null,null,null,null,132]
[null,null,null,null,null,null,null,null,null,null,133]
[null,null,null,null,null,null,null,null,null,null,134]
[null,null,null,null,null,null,null,null,null,null,135]
[null,null,null,null,null,null,null,null,null,null,136]
[null,null,null,null,null,null,null,null,null,null,137]
[null,null,null,null,null,null,null,null,null,null,138]
[null,null,null,null,null,null,null,null,null,null,139]
[null,null,null,null,null,null,null,null,null,null,140]
[null,null,null,null,null,null,null,null,null,null,141]
[null,null,null,null,null,null,null,null,null,null,142]
[null,null,null,null,null,null,null,null,null,null,143]
[null,null,null,null,null,null,null,null,null,null,144]
[null,null,null,null,null,null,null,null,null,null,145]
[null,null,null,null,null,null,null,null,null,null,146]
[null,null,null,null,null,null,null,null,null,null,147]
[null,null,null,null,null,null,null,null,null,null,148]
[null,null,null,null,null,null,null,null,null,null,149]
[null,null,null,null,null,null,null,null,null,null,150]
[null,null,null,null,null,null,null,null,null,null,151]
[null,null,null,null,null,null,null,null,null,null,152]
[null,null,null,null,null,null,null,null,null,null,153]
[null,null,null,null,null,null,null,null,null,null,154]
[null,null,null,null,null,null,null,null,null,null,155]
[null,null,null,null,null,null,null,null,null,null,156]
[null,null,null,null,null,null,null,null,null,null,157]
[null,null,null,null,null,null,null,null,null,null,158]
[null,null,null,null,null,null,null,null,null,null,159]
[null,null,null,null,null,null,null,null,null,null,160]
[null,null,null,null,null,null,null,null,null,null,161]
[null,null,null,null,null,null,null,null,null,null,162]
[null,null,null,null,null,null,null,null,null,null,163]
[null,null,null,null,null,null,null,null,null,null,164]
[null,null,null,null,null,null,null,null,null,null,165]
[null,null,null,null,null,null,null,null,null,null,166]
[null,null,null,null,null,null,null,null,null,null,167]
[null,null,null,null,null,null,null,null,null,null,168]
[null,null,null,null,null,null,null,null,null,null,169]
[null,null,null,null,null,null,null,null,null,null,170]
[null,null,null,null,null,null,null,null,null,null,171]
[null,null,null,null,null,null,null,null,null,null,172]
[null,null,null,null,null,null,null,null,null,null,173]
[null,null,null,null,null,null,null,null,null,null,174]
[null,null,null,null,null,null,null,null,null,null,175]
[null,null,null,null,null,null,null,null,null,null,176]
[null,null,null,null,null,null,null,null,null,null,177]
[null,null,null,null,null,null,null,null,null,null,178]
[null,null,null,null,null,null,null,null,null,null,179]
[null,null,null,null,null,null,null,null,null,null,180]
[null,null,null,null,null,null,null,null,null,null,181]
[null,null,null,null,null,null,null,null,null,null,182]
[null,null,null,null,null,null,null,null,null,null,183]
[null,null,null,null,null,null,null,null,null,null,184]
[null,null,null,null,null,null,null,null,null,null,185]
[null,null,null,null,null,null,null,null,null,null,186]
[null,null,null,null,null,null,null,null,null,null,187]
[null,null,null,null,null,null,null,null,null,null,188]
[null,null,null,null,null,null,null,null,null,null,189]
[null,null,null,null,null,null,null,null,null,null,190]
[null,null,null,null,null,null,null,null,null,null,191]
[null,null,null,null,null,null,null,null,null,null,192]
[null,null,null,null,null,null,null,null,null,null,193]
[null,null,null,null,null,null,null,null,null,null,194]
[null,null,null,null,null,null,null,null,null,null,195]
[null,null,null,null,null,null,null,null,null,null,196]
[null,null,null,null,null,null,null,null,null,null,197]
[null,null,null,null,null,null,null,null,null,null,198]
[null,null,null,null,null,null,null,null,null,null,199]
[null,null,null,null,null,null,null,null,null,null,200]
[null,null,null,null,null,null,null,null,null,null,201]
[null,null,null,null,null,null,null,null,null,null,202]
[null,null,null,null,null,null,null,null,null,null,203]
[null,null,null,null,null,null,null,null,null,null,204]
[null,null,null,null,null,null,null,null,null,null,205]
[null,null,null,null,null,null,null,null,null,null,206]
[null,null,null,null,null,null,null,null,null,null,207]
[null,null,null,null,null,null,null,null,null,null,208]
[null,null,null,null,null,null,null,null,null,null,209]
[null,null,null,null,null,null,null,null,null,null,210]
[null,null,null,null,null,null,null,null,null,null,211]
[null,null,null,null,null,null,null,null,null,null,212]
[null,null,null,null,null,null,null,null,null,null,213]
[null,null,null,null,null,null,null,null,null,null,214]
[null,null,null,null,null,null,null,null,null,null,215]
[null,null,null,null,null,null,null,null,null,null,216]
[null,null,null,null,null,null,null,null,null,null,217]
[null,null,null,null,null,null,null,null,null,null,218]
[null,null,null,null,null,null,null,null,null,null,219]
[null,null,null,null,null,null,null,null,null,null,220]
[null,null,null,null,null,null,null,null,null,null,221]
[null,null,null,null,null,null,null,null,null,null,222]
[null,null,null,null,null,null,null,null,null,null,223]
[null,null,null,null,null,null,null,null,null,null,224]
[null,null,null,null,null,null,null,null,null,null,225]
[null,null,null,null,null,null,null,null,null,null,226]
[null,null,null,null,null,null,null,null,null,null,227]
[null,null,null,null,null,null,null,null,null,null,228]
[null,null,null,null,null,null,null,null,null,null,229]
[null,null,null,null,null,null,null,null,null,null,230]
[null,null,null,null,null,null,null,null,null,null,231]
[null,null,null,null,null,null,null,null,null,null,232]
[null,null,null,null,null,null,null,null,null,null,233]
[null,null,null,null,null,null,null,null,null,null,234]
[null,null,null,null,null,null,null,null,null,null,235]
[null,null,null,null,null,null,null,null,null,null,236]
[null,null,null,null,null,null,null,null,null,null,237]
[null,null,null,null,null,null,null,null,null,null,238]
[null,null,null,null,null,null,null,null,null,null,239]
[null,null,null,null,null,null,null,null,null,null,240]
[null,null,null,null,null,null,null,null,null,null,241]
[null,null,null,null,null,null,null,null,null,null,242]
[null,null,null,null,null,null,null,null,null,null,243]
[null,null,null,null,null,null,null,null,null,null,244]
[null,null,null,null,null,null,null,null,null,null,245]
[null,null,null,null,null,null,null,null,null,null,246]
[null,null,null,null,null,null,null,null,null,null,247]
[null,null,null,null,null,null,null,null,null,null,248]
[null,null,null,null,null,null,null,null,null,null,249]
[null,null,null,null,null,null,null,null,null,null,250]
[null,null,null,null,null,null,null,null,null,null,251]
[null,null,null,null,null,null,null,null,null,null,252]
[null,null,null,null,null,null,null,null,null,null,253]
[null,null,null,null,null,null,null,null,null,null,254]
[null,null,null,null,null,null,null,null,null,null,255]
[null,null,null,null,null,null,null,null,null,null,256]
[null,null,null,null,null,null,null,null,null,null,257]
[null,null,null,null,null,null,null,null,null,null,258]
[null,null,null,null,null,null,null,null,null,null,259]
[null,null,null,null,null,null,null,null,null,null,260]
[null,null,null,null,null,null,null,null,null,null,261]
[null,null,null,null,null,null,null,null,null,null,262]
[null,null,null,null,null,null,null,null,null,null,263]
[null,null,null,null,null,null,null,null,null,null,264]
[null,null,null,null,null,null,null,null,null,null,265]
[null,null,null,null,null,null,null,null,null,null,266]
[null,null,null,null,null,null,null,null,null,null,267]
[null,null,null,null,null,null,null,null,null,null,268]
[null,null,null,null,null,null,null,null,null,null,269]
[null,null,null,null,null,null,null,null,null,null,270]
[null,null,null,null,null,null,null,null,null,null,271]
[null,null,null,null,null,null,null,null,null,null,272]
[null,null,null,null,null,null,null,null,null,null,273]
[null,null,null,null,null,null,null,null,null,null,274]
[null,null,null,null,null,null,null,null,null,null,275]
[null,null,null,null,null,null,null,null,null,null,276]
[null,null,null,null,null,null,null,null,null,null,277]
[null,null,null,null,null,null,null,null,null,null,278]
[null,null,null,null,null,null,null,null,null,null,279]
[null,null,null,null,null,null,null,null,null,null,280]
[null,null,null,null,null,null,null,null,null,null,281]
[null,null,null,null,null,null,null,null,null,null,282]
[null,null,null,null,null,null,null,null,null,null,283]
[null,null,null,null,null,null,null,null,null,null,284]
[null,null,null,null,null,null,null,null,null,null,285]
[null,null,null,null,null,null,null,null,null,null,286]
[null,null,null,null,null,null,null,null,null,null,287]
[null,null,null,null,null,null,null,null,null,null,288]
[null,null,null,null,null,null,null,null,null,null,289]
[null,null,null,null,null,null,null,null,null,null,290]
[null,null,null,null,null,null,null,null,null,null,291]
[null,null,null,null,null,null,null,null,null,null,292]
[null,null,null,null,null,null,null,null,null,null,293]
[null,null,null,null,null,null,null,null,null,null,294]
[null,null,null,null,null,null,null,null,null,null,295]
[null,null,null,null,null,null,null,null,null,null,296]
[null,null,null,null,null,null,null,null,null,null,297]
[null,null,null,null,null,null,null,null,null,null,298]
[null,null,null,null,null,null,null,null,null,null,299]
[null,null,null,null,null,null,null,null,null,null,300]
[null,null,null,null,null,null,null,null,null,null,301]
[null,null,null,null,null,null,null,null,null,null,302]
[null,null,null,null,null,null,null,null,null,null,303]
[null,null,null,null,null,null,null,null,null,null,304]
[null,null,null,null,null,null,null,null,null,null,305]
[null,null,null,null,null,null,null,null,null,null,306]
[null,null,null,null,null,null,null,null,null,null,307]
[null,null,null,null,null,null,null,null,null,null,308]
[null,null,null,null,null,null,null,null,null,null,309]
[null,null,null,null,null,null,null,null,null,null,310]
[null,null,null,null,null,null,null,null,null,null,311]
[null,null,null,null,null,null,null,null,null,null,312]
[null,null,null,null,null,null,null,null,null,null,313]
[null,null,null,null,null,null,null,null,null,null,314]
[null,null,null,null,null,null,null,null,null,null,315]
[null,null,null,null,null,null,null,null,null,null,316]
[null,null,null,null,null,null,null,null,null,null,317]
[null,null,null,null,null,null,null,null,null,null,318]
[null,null,null,null,null,null,null,null,null,null,319]
[null,null,null,null,null,null,null,null,null,null,320]
[null,null,null,null,null,null,null,null,null,null,321]
[null,null,null,null,null,null,null,null,null,null,322]
[null,null,null,null,null,null,null,null,null,null,323]
[null,null,null,null,null,null,null,null,null,null,324]
[null,null,null,null,null,null,null,null,null,null,325]
[null,null,null,null,null,null,null,null,null,null,326]
[null,null,null,null,null,null,null,null,null,null,327]
[null,null,null,null,null,null,null,null,null,null,328]
[null,null,null,null,null,null,null,null,null,null,329]
[null,null,null,null,null,null,null,null,null,null,330]
[null,null,null,null,null,null,null,null,null,null,331]
[null,null,null,null,null,null,null,null,null,null,332]
[null,null,null,null,null,null,null,null,null,null,333]
[null,null,null,null,null,null,null,null,null,null,334]
[null,null,null,null,null,null,null,null,null,null,335]
[null,null,null,null,null,null,null,null,null,null,336]
[null,null,null,null,null,null,null,null,null,null,337]
[null,null,null,null,null,null,null,null,null,null,338]
[null,null,null,null,null,null,null,null,null,null,339]
[null,null,null,null,null,null,null,null,null,null,340]
[null,null,null,null,null,null,null,null,null,null,341]
[null,null,null,null,null,null,null,null,null,null,342]
[null,null,null,null,null,null,null,null,null,null,343]
[null,null,null,null,null,null,null,null,null,null,344]
[null,null,null,null,null,null,null,null,null,null,345]
[null,null,null,null,null,null,null,null,null,null,346]
[null,null,null,null,null,null,null,null,null,null,347]
[null,null,null,null,null,null,null,null,null,null,348]
[null,null,null,null,null,null,null,null,null,null,349]
[null,null,null,null,null,null,null,null,null,null,350]
[null,null,null,null,null,null,null,null,null,null,351]
[null,null,null,null,null,null,null,null,null,null,352]
[null,null,null,null,null,null,null,null,null,null,353]
[null,null,null,null,null,null,null,null,null,null,354]
[null,null,null,null,null,null,null,null,null,null,355]
[null,null,null,null,null,null,null,null,null,null,356]
[null,null,null,null,null,null,null,null,null,null,357]
[null,null,null,null,null,null,null,null,null,null,358]
[null,null,null,null,null,null,null,null,null,null,359]
[null,null,null,null,null,null,null,null,null,null,360]
[null,null,null,null,null,null,null,null,null,null,361]
[null,null,null,null,null,null,null,null,null,null,362]
[null,null,null,null,null,null,null,null,null,null,363]
[null,null,null,null,null,null,null,null,null,null,364]
[null,null,null,null,null,null,null,null,null,null,365]
[null,null,null,null,null,null,null,null,null,null,366]
[null,null,null,null,null,null,null,null,null,null,367]
[null,null,null,null,null,null,null,null,null,null,368]
[null,null,null,null,null,null,null,null,null,null,369]
[null,null,null,null,null,null,null,null,null,null,370]
[null,null,null,null,null,null,null,null,null,null,371]
[null,null,null,null,null,null,null,null,null,null,372]
[null,null,null,null,null,null,null,null,null,null,373]
[null,null,null,null,null,null,null,null,null,null,374]
[null,null,null,null,null,null,null,null,null,null,375]
[null,null,null,null,null,null,null,null,null,null,376]
[null,null,null,null,null,null,null,null,null,null,377]
[null,null,null,null,null,null,null,null,null,null,378]
[null,null,null,null,null,null,null,null,null,null,379]
[null,null,null,null,null,null,null,null,null,null,380]
[null,null,null,null,null,null,null,null,null,null,381]
[null,null,null,null,null,null,null,null,null,null,382]
[null,null,null,null,null,null,null,null,null,null,383]
[null,null,null,null,null,null,null,null,null,null,384]
[null,null,null,null,null,null,null,null,null,null,385]
[null,null,null,null,null,null,null,null,null,null,386]
[null,null,null,null,null,null,null,null,null,null,387]
[null,null,null,null,null,null,null,null,null,null,388]
[null,null,null,null,null,null,null,null,null,null,389]
[null,null,null,null,null,null,null,null,null,null,390]
[null,null,null,null,null,null,null,null,null,null,391]
[null,null,null,null,null,null,null,null,null,null,392]
[null,null,null,null,null,null,null,null,null,null,393]
[null,null,null,null,null,null,null,null,null,null,394]
[null,null,null,null,null,null,null,null,null,null,395]
[null,null,null,null,null,null,null,null,null,null,396]
[null,null,null,null,null,null,null,null,null,null,397]
[null,null,null,null,null,null,null,null,null,null,398]
[null,null,null,null,null,null,null,null,null,null,399]
[null,null,null,null,null,null,null,null,null,null,400]
[null,null,null,null,null,null,null,null,null,null,401]
[null,null,null,null,null,null,null,null,null,null,402]
[null,null,null,null,null,null,null,null,null,null,403]
[null,null,null,null,null,null,null,null,null,null,404]
[null,null,null,null,null,null,null,null,null,null,405]
[null,null,null,null,null,null,null,null,null,null,406]
[null,null,null,null,null,null,null,null,null,null,407]
[null,null,null,null,null,null,null,null,null,null,408]
[null,null,null,null,null,null,null,null,null,null,409]
[null,null,null,null,null,null,null,null,null,null,410]
[null,null,null,null,null,null,null,null,null,null,411]
[null,null,null,null,null,null,null,null,null,null,412]
[null,null,null,null,null,null,null,null,null,null,413]
[null,null,null,null,null,null,null,null,null,null,414]
[null,null,null,null,null,null,null,null,null,null,415]
[null,null,null,null,null,null,null,null,null,null,416]
[null,null,null,null,null,null,null,null,null,null,417]
[null,null,null,null,null,null,null,null,null,null,418]
[null,null,null,null,null,null,null,null,null,null,419]
[null,null,null,null,null,null,null,null,null,null,420]
[null,null,null,null,null,null,null,null,null,null,421]
[null,null,null,null,null,null,null,null,null,null,422]
[null,null,null,null,null,null,null,null,null,null,423]
[null,null,null,null,null,null,null,null,null,null,424]
[null,null,null,null,null,null,null,null,null,null,425]
[null,null,null,null,null,null,null,null,null,null,426]
[null,null,null,null,null,null,null,null,null,null,427]
[null,null,null,null,null,null,null,null,null,null,428]
[null,null,null,null,null,null,null,null,null,null,429]
[null,null,null,null,null,null,null,null,null,null,430]
[null,null,null,null,null,null,null,null,null,null,431]
[null,null,null,null,null,null,null,null,null,null,432]
[null,null,null,null,null,null,null,null,null,null,433]
[null,null,null,null,null,null,null,null,null,null,434]
[null,null,null,null,null,null,null,null,null,null,435]
[null,null,null,null,null,null,null,null,null,null,436]
[null,null,null,null,null,null,null,null,null,null,437]
[null,null,null,null,null,null,null,null,null,null,438]
[null,null,null,null,null,null,null,null,null,null,439]
[null,null,null,null,null,null,null,null,null,null,440]
[null,null,null,null,null,null,null,null,null,null,441]
[null,null,null,null,null,null,null,null,null,null,442]
[null,null,null,null,null,null,null,null,null,null,443]
[null,null,null,null,null,null,null,null,null,null,444]
[null,null,null,null,null,null,null,null,null,null,445]
[null,null,null,null,null,null,null,null,null,null,446]
[null,null,null,null,null,null,null,null,null,null,447]
[null,null,null,null,null,null,null,null,null,null,448]
[null,null,null,null,null,null,null,null,null,null,449]
[null,null,null,null,null,null,null,null,null,null,450]
[null,null,null,null,null,null,null,null,null,null,451]
[null,null,null,null,null,null,null,null,null,null,452]
[null,null,null,null,null,null,null,null,null,null,453]
[null,null,null,null,null,null,null,null,null,null,454]
[null,null,null,null,null,null,null,null,null,null,455]
[null,null,null,null,null,null,null,null,null,null,456]
[null,null,null,null,null,null,null,null,null,null,457]
[null,null,null,null,null,null,null,null,null,null,458]
[null,null,null,null,null,null,null,null,null,null,459]
[null,null,null,null,null,null,null,null,null,null,460]
[null,null,null,null,null,null,null,null,null,null,461]
[null,null,null,null,null,null,null,null,null,null,462]
[null,null,null,null,null,null,null,null,null,null,463]
[null,null,null,null,null,null,null,null,null,null,464]
[null,null,null,null,null,null,null,null,null,null,465]
[null,null,null,null,null,null,null,null,null,null,466]
[null,null,null,null,null,null,null,null,null,null,467]
[null,null,null,null,null,null,null,null,null,null,468]
[null,null,null,null,null,null,null,null,null,null,469]
[null,null,null,null,null,null,null,null,null,null,470]
[null,null,null,null,null,null,null,null,null,null,471]
[null,null,null,null,null,null,null,null,null,null,472]
[null,null,null,null,null,null,null,null,null,null,473]
[null,null,null,null,null,null,null,null,null,null,474]
[null,null,null,null,null,null,null,null,null,null,475]
[null,null,null,null,null,null,null,null,null,null,476]
[null,null,null,null,null,null,null,null,null,null,477]
[null,null,null,null,null,null,null,null,null,null,478]
[null,null,null,null,null,null,null,null,null,null,479]
[null,null,null,null,null,null,null,null,null,null,480]
[null,null,null,null,null,null,null,null,null,null,481]
[null,null,null,null,null,null,null,null,null,null,482]
[null,null,null,null,null,null,null,null,null,null,483]
[null,null,null,null,null,null,null,null,null,null,484]
[null,null,null,null,null,null,null,null,null,null,485]
[null,null,null,null,null,null,null,null,null,null,486]
[null,null,null,null,null,null,null,null,null,null,487]
[null,null,null,null,null,null,null,null,null,null,488]
[null,null,null,null,null,null,null,null,null,null,489]
[null,null,null,null,null,null,null,null,null,null,490]
[null,null,null,null,null,null,null,null,null,null,491]
[null,null,null,null,null,null,null,null,null,null,492]
[null,null,null,null,null,null,null,null,null,null,493]
[null,null,null,null,null,null,null,null,null,null,494]
[null,null,null,null,null,null,null,null,null,null,495]
[null,null,null,null,null,null,null,null,null,null,496]
[null,null,null,null,null,null,null,null,null,null,497]
[null,null,null,null,null,null,null,null,null,null,498]
[null,null,null,null,null,null,null,null,null,null,499]
[null,null,null,null,null,null,null,null,null,null,500]
[null,null,null,null,null,null,null,null,null,null,501]
[null,null,null,null,null,null,null,null,null,null,502]
[null,null,null,null,null,null,null,null,null,null,503]
[null,null,null,null,null,null,null,null,null,null,504]
[null,null,null,null,null,null,null,null,null,null,505]
[null,null,null,null,null,null,null,null,null,null,506]
[null,null,null,null,null,null,null,null,null,null,507]
[null,null,null,null,null,null,null,null,null,null,508]
[null,null,null,null,null,null,null,null,null,null,509]
[null,null,null,null,null,null,null,null,null,null,510]
[null,null,null,null,null,null,null,null,null,null,511]
[null,null,null,null,null,null,null,null,null,null,512]
[null,null,null,null,null,null,null,null,null,null,513]
[null,null,null,null,null,null,null,null,null,null,514]
[null,null,null,null,null,null,null,null,null,null,515]
[null,null,null,null,null,null,null,null,null,null,516]
[null,null,null,null,null,null,null,null,null,null,517]
[null,null,null,null,null,null,null,null,null,null,518]
[null,null,null,null,null,null,null,null,null,null,519]
[null,null,null,null,null,null,null,null,null,null,520]
[null,null,null,null,null,null,null,null,null,null,521]
[null,null,null,null,null,null,null,null,null,null,522]
[null,null,null,null,null,null,null,null,null,null,523]
[null,null,null,null,null,null,null,null,null,null,524]
[null,null,null,null,null,null,null,null,null,null,525]
[null,null,null,null,null,null,null,null,null,null,526]
[null,null,null,null,null,null,null,null,null,null,527]
[null,null,null,null,null,null,null,null,null,null,528]
[null,null,null,null,null,null,null,null,null,null,529]
[null,null,null,null,null,null,null,null,null,null,530]
[null,null,null,null,null,null,null,null,null,null,531]
[null,null,null,null,null,null,null,null,null,null,532]
[null,null,null,null,null,null,null,null,null,null,533]
[null,null,null,null,null,null,null,null,null,null,534]
[null,null,null,null,null,null,null,null,null,null,535]
[null,null,null,null,null,null,null,null,null,null,536]
[null,null,null,null,null,null,null,null,null,null,537]
[null,null,null,null,null,null,null,null,null,null,538]
[null,null,null,null,null,null,null,null,null,null,539]
[null,null,null,null,null,null,null,null,null,null,540]
[null,null,null,null,null,null,null,null,null,null,541]
[null,null,null,null,null,null,null,null,null,null,542]
[null,null,null,null,null,null,null,null,null,null,543]
[null,null,null,null,null,null,null,null,null,null,544]
[null,null,null,null,null,null,null,null,null,null,545]
[null,null,null,null,null,null,null,null,null,null,546]
[null,null,null,null,null,null,null,null,null,null,547]
[null,null,null,null,null,null,null,null,null,null,548]
[null,null,null,null,null,null,null,null,null,null,549]
[null,null,null,null,null,null,null,null,null,null,550]
[null,null,null,null,null,null,null,null,null,null,551]
[null,null,null,null,null,null,null,null,null,null,552]
[null,null,null,null,null,null,null,null,null,null,553]
[null,null,null,null,null,null,null,null,null,null,554]
[null,null,null,null,null,null,null,null,null,null,555]
[null,null,null,null,null,null,null,null,null,null,556]
[null,null,null,null,null,null,null,null,null,null,557]
[null,null,null,null,null,null,null,null,null,null,558]
[null,null,null,null,null,null,null,null,null,null,559]
[null,null,null,null,null,null,null,null,null,null,560]
[null,null,null,null,null,null,null,null,null,null,561]
[null,null,null,null,null,null,null,null,null,null,562]
[null,null,null,null,null,null,null,null,null,null,563]
[null,null,null,null,null,null,null,null,null,null,564]
[null,null,null,null,null,null,null,null,null,null,565]
[null,null,null,null,null,null,null,null,null,null,566]
[null,null,null,null,null,null,null,null,null,null,567]
[null,null,null,null,null,null,null,null,null,null,568]
[null,null,null,null,null,null,null,null,null,null,569]
[null,null,null,null,null,null,null,null,null,null,570]
[null,null,null,null,null,null,null,null,null,null,571]
[null,null,null,null,null,null,null,null,null,null,572]
[null,null,null,null,null,null,null,null,null,null,573]
[null,null,null,null,null,null,null,null,null,null,574]
[null,null,null,null,null,null,null,null,null,null,575]
[null,null,null,null,null,null,null,null,null,null,576]
[null,null,null,null,null,null,null,null,null,null,577]
[null,null,null,null,null,null,null,null,null,null,578]
[null,null,null,null,null,null,null,null,null,null,579]
[null,null,null,null,null,null,null,null,null,null,580]
[null,null,null,null,null,null,null,null,null,null,581]
[null,null,null,null,null,null,null,null,null,null,582]
[null,null,null,null,null,null,null,null,null,null,583]
[null,null,null,null,null,null,null,null,null,null,584]
[null,null,null,null,null,null,null,null,null,null,585]
[null,null,null,null,null,null,null,null,null,null,586]
[null,null,null,null,null,null,null,null,null,null,587]
[null,null,null,null,null,null,null,null,null,null,588]
[null,null,null,null,null,null,null,null,null,null,589]
[null,null,null,null,null,null,null,null,null,null,590]
[null,null,null,null,null,null,null,null,null,null,591]
[null,null,null,null,null,null,null,null,null,null,592]
[null,null,null,null,null,null,null,null,null,null,593]
[null,null,null,null,null,null,null,null,null,null,594]
[null,null,null,null,null,null,null,null,null,null,595]
[null,null,null,null,null,null,null,null,null,null,596]
[null,null,null,null,null,null,null,null,null,null,597]
[null,null,null,null,null,null,null,null,null,null,598]
[null,null,null,null,null,null,null,null,null,null,599]
[null,null,null,null,null,null,null,null,null,null,600]
[null,null,null,null,null,null,null,null,null,null,601]
[null,null,null,null,null,null,null,null,null,null,602]
[null,null,null,null,null,null,null,null,null,null,603]
[null,null,null,null,null,null,null,null,null,null,604]
[null,null,null,null,null,null,null,null,null,null,605]
[null,null,null,null,null,null,null,null,null,null,606]
[null,null,null,null,null,null,null,null,null,null,607]
[null,null,null,null,null,null,null,null,null,null,608]
[null,null,null,null,null,null,null,null,null,null,609]
[null,null,null,null,null,null,null,null,null,null,610]
[null,null,null,null,null,null,null,null,null,null,611]
[null,null,null,null,null,null,null,null,null,null,612]
[null,null,null,null,null,null,null,null,null,null,613]
[null,null,null,null,null,null,null,null,null,null,614]
[null,null,null,null,null,null,null,null,null,null,615]
[null,null,null,null,null,null,null,null,null,null,616]
[null,null,null,null,null,null,null,null,null,null,617]
[null,null,null,null,null,null,null,null,null,null,618]
[null,null,null,null,null,null,null,null,null,null,619]
[null,null,null,null,null,null,null,null,null,null,620]
[null,null,null,null,null,null,null,null,null,null,621]
[null,null,null,null,null,null,null,null,null,null,622]
[null,null,null,null,null,null,null,null,null,null,623]
[null,null,null,null,null,null,null,null,null,null,624]
[null,null,null,null,null,null,null,null,null,null,625]
[null,null,null,null,null,null,null,null,null,null,626]
[null,null,null,null,null,null,null,null,null,null,627]
[null,null,null,null,null,null,null,null,null,null,628]
[null,null,null,null,null,null,null,null,null,null,629]
[null,null,null,null,null,null,null,null,null,null,630]
[null,null,null,null,null,null,null,null,null,null,631]
[null,null,null,null,null,null,null,null,null,null,632]
[null,null,null,null,null,null,null,null,null,null,633]
[null,null,null,null,null,null,null,null,null,null,634]
[null,null,null,null,null,null,null,null,null,null,635]
[null,null,null,null,null,null,null,null,null,null,636]
[null,null,null,null,null,null,null,null,null,null,637]
[null,null,null,null,null,null,null,null,null,null,638]
[null,null,null,null,null,null,null,null,null,null,639]
[null,null,null,null,null,null,null,null,null,null,640]
[null,null,null,null,null,null,null,null,null,null,641]
[null,null,null,null,null,null,null,null,null,null,642]
[null,null,null,null,null,null,null,null,null,null,643]
[null,null,null,null,null,null,null,null,null,null,644]
[null,null,null,null,null,null,null,null,null,null,645]
[null,null,null,null,null,null,null,null,null,null,646]
[null,null,null,null,null,null,null,null,null,null,647]
[null,null,null,null,null,null,null,null,null,null,648]
[null,null,null,null,null,null,null,null,null,null,649]
[null,null,null,null,null,null,null,null,null,null,650]
[null,null,null,null,null,null,null,null,null,null,651]
[null,null,null,null,null,null,null,null,null,null,652]
[null,null,null,null,null,null,null,null,null,null,653]
[null,null,null,null,null,null,null,null,null,null,654]
[null,null,null,null,null,null,null,null,null,null,655]
[null,null,null,null,null,null,null,null,null,null,656]
[null,null,null,null,null,null,null,null,null,null,657]
[null,null,null,null,null,null,null,null,null,null,658]
[null,null,null,null,null,null,null,null,null,null,659]
[null,null,null,null,null,null,null,null,null,null,660]
[null,null,null,null,null,null,null,null,null,null,661]
[null,null,null,null,null,null,null,null,null,null,662]
[null,null,null,null,null,null,null,null,null,null,663]
[null,null,null,null,null,null,null,null,null,null,664]
[null,null,null,null,null,null,null,null,null,null,665]
[null,null,null,null,null,null,null,null,null,null,666]
[null,null,null,null,null,null,null,null,null,null,667]
[null,null,null,null,null,null,null,null,null,null,668]
[null,null,null,null,null,null,null,null,null,null,669]
[null,null,null,null,null,null,null,null,null,null,670]
[null,null,null,null,null,null,null,null,null,null,671]
[null,null,null,null,null,null,null,null,null,null,672]
[null,null,null,null,null,null,null,null,null,null,673]
[null,null,null,null,null,null,null,null,null,null,674]
[null,null,null,null,null,null,null,null,null,null,675]
[null,null,null,null,null,null,null,null,null,null,676]
[null,null,null,null,null,null,null,null,null,null,677]
[null,null,null,null,null,null,null,null,null,null,678]
[null,null,null,null,null,null,null,null,null,null,679]
[null,null,null,null,null,null,null,null,null,null,680]
[null,null,null,null,null,null,null,null,null,null,681]
[null,null,null,null,null,null,null,null,null,null,682]
[null,null,null,null,null,null,null,null,null,null,683]
[null,null,null,null,null,null,null,null,null,null,684]
[null,null,null,null,null,null,null,null,null,null,685]
[null,null,null,null,null,null,null,null,null,null,686]
[null,null,null,null,null,null,null,null,null,null,687]
[null,null,null,null,null,null,null,null,null,null,688]
[null,null,null,null,null,null,null,null,null,null,689]
[null,null,null,null,null,null,null,null,null,null,690]
[null,null,null,null,null,null,null,null,null,null,691]
[null,null,null,null,null,null,null,null,null,null,692]
[null,null,null,null,null,null,null,null,null,null,693]
[null,null,null,null,null,null,null,null,null,null,694]
[null,null,null,null,null,null,null,null,null,null,695]
[null,null,null,null,null,null,null,null,null,null,696]
[null,null,null,null,null,null,null,null,null,null,697]
[null,null,null,null,null,null,null,null,null,null,698]
[null,null,null,null,null,null,null,null,null,null,699]
[null,null,null,null,null,null,null,null,null,null,700]
[null,null,null,null,null,null,null,null,null,null,701]
[null,null,null,null,null,null,null,null,null,null,702]
[null,null,null,null,null,null,null,null,null,null,703]
[null,null,null,null,null,null,null,null,null,null,704]
[null,null,null,null,null,null,null,null,null,null,705]
[null,null,null,null,null,null,null,null,null,null,706]
[null,null,null,null,null,null,null,null,null,null,707]
[null,null,null,null,null,null,null,null,null,null,708]
[null,null,null,null,null,null,null,null,null,null,709]
[null,null,null,null,null,null,null,null,null,null,710]
[null,null,null,null,null,null,null,null,null,null,711]
[null,null,null,null,null,null,null,null,null,null,712]
[null,null,null,null,null,null,null,null,null,null,713]
[null,null,null,null,null,null,null,null,null,null,714]
[null,null,null,null,null,null,null,null,null,null,715]
[null,null,null,null,null,null,null,null,null,null,716]
[null,null,null,null,null,null,null,null,null,null,717]
[null,null,null,null,null,null,null,null,null,null,718]
[null,null,null,null,null,null,null,null,null,null,719]
[null,null,null,null,null,null,null,null,null,null,720]
[null,null,null,null,null,null,null,null,null,null,721]
[null,null,null,null,null,null,null,null,null,null,722]
[null,null,null,null,null,null,null,null,null,null,723]
[null,null,null,null,null,null,null,null,null,null,724]
[null,null,null,null,null,null,null,null,null,null,725]
[null,null,null,null,null,null,null,null,null,null,726]
[null,null,null,null,null,null,null,null,null,null,727]
[null,null,null,null,null,null,null,null,null,null,728]
[null,null,null,null,null,null,null,null,null,null,729]
[null,null,null,null,null,null,null,null,null,null,730]
[null,null,null,null,null,null,null,null,null,null,731]
[null,null,null,null,null,null,null,null,null,null,732]
[null,null,null,null,null,null,null,null,null,null,733]
[null,null,null,null,null,null,null,null,null,null,734]
[null,null,null,null,null,null,null,null,null,null,735]
[null,null,null,null,null,null,null,null,null,null,736]
[null,null,null,null,null,null,null,null,null,null,737]
[null,null,null,null,null,null,null,null,null,null,738]
[null,null,null,null,null,null,null,null,null,null,739]
[null,null,null,null,null,null,null,null,null,null,740]
[null,null,null,null,null,null,null,null,null,null,741]
[null,null,null,null,null,null,null,null,null,null,742]
[null,null,null,null,null,null,null,null,null,null,743]
[null,null,null,null,null,null,null,null,null,null,744]
[null,null,null,null,null,null,null,null,null,null,745]
[null,null,null,null,null,null,null,null,null,null,746]
[null,null,null,null,null,null,null,null,null,null,747]
[null,null,null,null,null,null,null,null,null,null,748]
[null,null,null,null,null,null,null,null,null,null,749]
[null,null,null,null,null,null,null,null,null,null,750]
[null,null,null,null,null,null,null,null,null,null,751]
[null,null,null,null,null,null,null,null,null,null,752]
[null,null,null,null,null,null,null,null,null,null,753]
[null,null,null,null,null,null,null,null,null,null,754]
[null,null,null,null,null,null,null,null,null,null,755]
[null,null,null,null,null,null,null,null,null,null,756]
[null,null,null,null,null,null,null,null,null,null,757]
[null,null,null,null,null,null,null,null,null,null,758]
[null,null,null,null,null,null,null,null,null,null,759]
[null,null,null,null,null,null,null,null,null,null,760]
[null,null,null,null,null,null,null,null,null,null,761]
[null,null,null,null,null,null,null,null,null,null,762]
[null,null,null,null,null,null,null,null,null,null,763]
[null,null,null,null,null,null,null,null,null,null,764]
[null,null,null,null,null,null,null,null,null,null,765]
[null,null,null,null,null,null,null,null,null,null,766]
[null,null,null,null,null,null,null,null,null,null,767]
[null,null,null,null,null,null,null,null,null,null,768]
[null,null,null,null,null,null,null,null,null,null,769]
[null,null,null,null,null,null,null,null,null,null,770]
[null,null,null,null,null,null,null,null,null,null,771]
[null,null,null,null,null,null,null,null,null,null,772]
[null,null,null,null,null,null,null,null,null,null,773]
[null,null,null,null,null,null,null,null,null,null,774]
[null,null,null,null,null,null,null,null,null,null,775]
[null,null,null,null,null,null,null,null,null,null,776]
[null,null,null,null,null,null,null,null,null,null,777]
[null,null,null,null,null,null,null,null,null,null,778]
[null,null,null,null,null,null,null,null,null,null,779]
[null,null,null,null,null,null,null,null,null,null,780]
[null,null,null,null,null,null,null,null,null,null,781]
[null,null,null,null,null,null,null,null,null,null,782]
[null,null,null,null,null,null,null,null,null,null,783]
[null,null,null,null,null,null,null,null,null,null,784]
[null,null,null,null,null,null,null,null,null,null,785]
[null,null,null,null,null,null,null,null,null,null,786]
[null,null,null,null,null,null,null,null,null,null,787]
[null,null,null,null,null,null,null,null,null,null,788]
[null,null,null,null,null,null,null,null,null,null,789]
[null,null,null,null,null,null,null,null,null,null,790]
[null,null,null,null,null,null,null,null,null,null,791]
[null,null,null,null,null,null,null,null,null,null,792]
[null,null,null,null,null,null,null,null,null,null,793]
[null,null,null,null,null,null,null,null,null,null,794]
[null,null,null,null,null,null,null,null,null,null,795]
[null,null,null,null,null,null,null,null,null,null,796]
[null,null,null,null,null,null,null,null,null,null,797]
[null,null,null,null,null,null,null,null,null,null,798]
[null,null,null,null,null,null,null,null,null,null,799]
[null,null,null,null,null,null,null,null,null,null,800]
[null,null,null,null,null,null,null,null,null,null,801]
[null,null,null,null,null,null,null,null,null,null,802]
[null,null,null,null,null,null,null,null,null,null,803]
[null,null,null,null,null,null,null,null,null,null,804]
[null,null,null,null,null,null,null,null,null,null,805]
[null,null,null,null,null,null,null,null,null,null,806]
[null,null,null,null,null,null,null,null,null,null,807]
[null,null,null,null,null,null,null,null,null,null,808]
[null,null,null,null,null,null,null,null,null,null,809]
[null,null,null,null,null,null,null,null,null,null,810]
[null,null,null,null,null,null,null,null,null,null,811]
[null,null,null,null,null,null,null,null,null,null,812]
[null,null,null,null,null,null,null,null,null,null,813]
[null,null,null,null,null,null,null,null,null,null,814]
[null,null,null,null,null,null,null,null,null,null,815]
[null,null,null,null,null,null,null,null,null,null,816]
[null,null,null,null,null,null,null,null,null,null,817]
[null,null,null,null,null,null,null,null,null,null,818]
[null,null,null,null,null,null,null,null,null,null,819]
[null,null,null,null,null,null,null,null,null,null,820]
[null,null,null,null,null,null,null,null,null,null,821]
[null,null,null,null,null,null,null,null,null,null,822]
[null,null,null,null,null,null,null,null,null,null,823]
[null,null,null,null,null,null,null,null,null,null,824]
[null,null,null,null,null,null,null,null,null,null,825]
[null,null,null,null,null,null,null,null,null,null,826]
[null,null,null,null,null,null,null,null,null,null,827]
[null,null,null,null,null,null,null,null,null,null,828]
[null,null,null,null,null,null,null,null,null,null,829]
[null,null,null,null,null,null,null,null,null,null,830]
[null,null,null,null,null,null,null,null,null,null,831]
[null,null,null,null,null,null,null,null,null,null,832]
[null,null,null,null,null,null,null,null,null,null,833]
[null,null,null,null,null,null,null,null,null,null,834]
[null,null,null,null,null,null,null,null,null,null,835]
[null,null,null,null,null,null,null,null,null,null,836]
[null,null,null,null,null,null,null,null,null,null,837]
[null,null,null,null,null,null,null,null,null,null,838]
[null,null,null,null,null,null,null,null,null,null,839]
[null,null,null,null,null,null,null,null,null,null,840]
[null,null,null,null,null,null,null,null,null,null,841]
[null,null,null,null,null,null,null,null,null,null,842]
[null,null,null,null,null,null,null,null,null,null,843]
[null,null,null,null,null,null,null,null,null,null,844]
[null,null,null,null,null,null,null,null,null,null,845]
[null,null,null,null,null,null,null,null,null,null,846]
[null,null,null,null,null,null,null,null,null,null,847]
[null,null,null,null,null,null,null,null,null,null,848]
[null,null,null,null,null,null,null,null,null,null,849]
[null,null,null,null,null,null,null,null,null,null,850]
[null,null,null,null,null,null,null,null,null,null,851]
[null,null,null,null,null,null,null,null,null,null,852]
[null,null,null,null,null,null,null,null,null,null,853]
[null,null,null,null,null,null,null,null,null,null,854]
[null,null,null,null,null,null,null,null,null,null,855]
[null,null,null,null,null,null,null,null,null,null,856]
[null,null,null,null,null,null,null,null,null,null,857]
[null,null,null,null,null,null,null,null,null,null,858]
[null,null,null,null,null,null,null,null,null,null,859]
[null,null,null,null,null,null,null,null,null,null,860]
[null,null,null,null,null,null,null,null,null,null,861]
[null,null,null,null,null,null,null,null,null,null,862]
[null,null,null,null,null,null,null,null,null,null,863]
[null,null,null,null,null,null,null,null,null,null,864]
[null,null,null,null,null,null,null,null,null,null,865]
[null,null,null,null,null,null,null,null,null,null,866]
[null,null,null,null,null,null,null,null,null,null,867]
[null,null,null,null,null,null,null,null,null,null,868]
[null,null,null,null,null,null,null,null,null,null,869]
[null,null,null,null,null,null,null,null,null,null,870]
[null,null,null,null,null,null,null,null,null,null,871]
[null,null,null,null,null,null,null,null,null,null,872]
[null,null,null,null,null,null,null,null,null,null,873]
[null,null,null,null,null,null,null,null,null,null,874]
[null,null,null,null,null,null,null,null,null,null,875]
[null,null,null,null,null,null,null,null,null,null,876]
[null,null,null,null,null,null,null,null,null,null,877]
[null,null,null,null,null,null,null,null,null,null,878]
[null,null,null,null,null,null,null,null,null,null,879]
[null,null,null,null,null,null,null,null,null,null,880]
[null,null,null,null,null,null,null,null,null,null,881]
[null,null,null,null,null,null,null,null,null,null,882]
[null,null,null,null,null,null,null,null,null,null,883]
[null,null,null,null,null,null,null,null,null,null,884]
[null,null,null,null,null,null,null,null,null,null,885]
[null,null,null,null,null,null,null,null,null,null,886]
[null,null,null,null,null,null,null,null,null,null,887]
[null,null,null,null,null,null,null,null,null,null,888]
[null,null,null,null,null,null,null,null,null,null,889]
[null,null,null,null,null,null,null,null,null,null,890]
[null,null,null,null,null,null,null,null,null,null,891]
[null,null,null,null,null,null,null,null,null,null,892]
[null,null,null,null,null,null,null,null,null,null,893]
[null,null,null,null,null,null,null,null,null,null,894]
[null,null,null,null,null,null,null,null,null,null,895]
[null,null,null,null,null,null,null,null,null,null,896]
[null,null,null,null,null,null,null,null,null,null,897]
[null,null,null,null,null,null,null,null,null,null,898]
[null,null,null,null,null,null,null,null,null,null,899]
[null,null,null,null,null,null,null,null,null,null,900]
[null,null,null,null,null,null,null,null,null,null,901]
[null,null,null,null,null,null,null,null,null,null,902]
[null,null,null,null,null,null,null,null,null,null,903]
[null,null,null,null,null,null,null,null,null,null,904]
[null,null,null,null,null,null,null,null,null,null,905]
[null,null,null,null,null,null,null,null,null,null,906]
[null,null,null,null,null,null,null,null,null,null,907]
[null,null,null,null,null,null,null,null,null,null,908]
[null,null,null,null,null,null,null,null,null,null,909]
[null,null,null,null,null,null,null,null,null,null,910]
[null,null,null,null,null,null,null,null,null,null,911]
[null,null,null,null,null,null,null,null,null,null,912]
[null,null,null,null,null,null,null,null,null,null,913]
[null,null,null,null,null,null,null,null,null,null,914]
[null,null,null,null,null,null,null,null,null,null,915]
[null,null,null,null,null,null,null,null,null,null,916]
[null,null,null,null,null,null,null,null,null,null,917]
[null,null,null,null,null,null,null,null,null,null,918]
[null,null,null,null,null,null,null,null,null,null,919]
[null,null,null,null,null,null,null,null,null,null,920]
[null,null,null,null,null,null,null,null,null,null,921]
[null,null,null,null,null,null,null,null,null,null,922]
[null,null,null,null,null,null,null,null,null,null,923]
[null,null,null,null,null,null,null,null,null,null,924]
[null,null,null,null,null,null,null,null,null,null,925]
[null,null,null,null,null,null,null,null,null,null,926]
[null,null,null,null,null,null,null,null,null,null,927]
[null,null,null,null,null,null,null,null,null,null,928]
[null,null,null,null,null,null,null,null,null,null,929]
[null,null,null,null,null,null,null,null,null,null,930]
[null,null,null,null,null,null,null,null,null,null,931]
[null,null,null,null,null,null,null,null,null,null,932]
[null,null,null,null,null,null,null,null,null,null,933]
[null,null,null,null,null,null,null,null,null,null,934]
[null,null,null,null,null,null,null,null,null,null,935]
[null,null,null,null,null,null,null,null,null,null,936]
[null,null,null,null,null,null,null,null,null,null,937]
[null,null,null,null,null,null,null,null,null,null,938]
[null,null,null,null,null,null,null,null,null,null,939]
[null,null,null,null,null,null,null,null,null,null,940]
[null,null,null,null,null,null,null,null,null,null,941]
[null,null,null,null,null,null,null,null,null,null,942]
[null,null,null,null,null,null,null,null,null,null,943]
[null,null,null,null,null,null,null,null,null,null,944]
[null,null,null,null,null,null,null,null,null,null,945]
[null,null,null,null,null,null,null,null,null,null,946]
[null,null,null,null,null,null,null,null,null,null,947]
[null,null,null,null,null,null,null,null,null,null,948]
[null,null,null,null,null,null,null,null,null,null,949]
[null,null,null,null,null,null,null,null,null,null,950]
[null,null,null,null,null,null,null,null,null,null,951]
[null,null,null,null,null,null,null,null,null,null,952]
[null,null,null,null,null,null,null,null,null,null,953]
[null,null,null,null,null,null,null,null,null,null,954]
[null,null,null,null,null,null,null,null,null,null,955]
[null,null,null,null,null,null,null,null,null,null,956]
[null,null,null,null,null,null,null,null,null,null,957]
[null,null,null,null,null,null,null,null,null,null,958]
[null,null,null,null,null,null,null,null,null,null,959]
[null,null,null,null,null,null,null,null,null,null,960]
[null,null,null,null,null,null,null,null,null,null,961]
[null,null,null,null,null,null,null,null,null,null,962]
[null,null,null,null,null,null,null,null,null,null,963]
[null,null,null,null,null,null,null,null,null,null,964]
[null,null,null,null,null,null,null,null,null,null,965]
[null,null,null,null,null,null,null,null,null,null,966]
[null,null,null,null,null,null,null,null,null,null,967]
[null,null,null,null,null,null,null,null,null,null,968]
[null,null,null,null,null,null,null,null,null,null,969]
[null,null,null,null,null,null,null,null,null,null,970]
[null,null,null,null,null,null,null,null,null,null,971]
[null,null,null,null,null,null,null,null,null,null,972]
[null,null,null,null,null,null,null,null,null,null,973]
[null,null,null,null,null,null,null,null,null,null,974]
[null,null,null,null,null,null,null,null,null,null,975]
[null,null,null,null,null,null,null,null,null,null,976]
[null,null,null,null,null,null,null,null,null,null,977]
[null,null,null,null,null,null,null,null,null,null,978]
[null,null,null,null,null,null,null,null,null,null,979]
[null,null,null,null,null,null,null,null,null,null,980]
[null,null,null,null,null,null,null,null,null,null,981]
[null,null,null,null,null,null,null,null,null,null,982]
[null,null,null,null,null,null,null,null,null,null,983]
[null,null,null,null,null,null,null,null,null,null,984]
[null,null,null,null,null,null,null,null,null,null,985]
[null,null,null,null,null,null,null,null,null,null,986]
[null,null,null,null,null,null,null,null,null,null,987]
[null,null,null,null,null,null,null,null,null,null,988]
[null,null,null,null,null,null,null,null,null,null,989]
[null,null,null,null,null,null,null,null,null,null,990]
[null,null,null,null,null,null,null,null,null,null,991]
[null,null,null,null,null,null,null,null,null,null,992]
[null,null,null,null,null,null,null,null,null,null,993]
[null,null,null,null,null,null,null,null,null,null,994]
[null,null,null,null,null,null,null,null,null,null,995]
[null,null,null,null,null,null,null,null,null,null,996]
[null,null,null,null,null,null,null,null,null,null,997]
[null,null,null,null,null,null,null,null,null,null,998]
[null,null,null,null,null,null,null,null,null,null,999]
["J:\\236000\\236135-00\\4. Work Package Delivery\\4-08 - Lighting\\WP 08D - Lighting Standards\\New Lighting Application Tool\\Application_20181128_1015.pdf",null,null,null,null,null,null,null,null,null,1000]
[{"$f":" LEFT( A1001, LEN( A1001 ) - 3 ) & \"xlsx\"","v":"J:\\236000\\236135-00\\4. Work Package Delivery\\4-08 - Lighting\\WP 08D - Lighting Standards\\New Lighting Application Tool\\Application_20181128_1015.xlsx"}]
[]
[]
[]
[]
[]
[]
[]
[]
[]
[]
[]
[]
[]
[]
[]
[]
[]
[]
[]
[]
[]
[]
[]
[]
[]
[]
[]
[]
[]
[]
[]
[]
[]
[]
[]
[]
[]
[]
[]
[]
[]
[]
[]
[]
[]
[]
[]
[]
[]
[]
[]
[]
[]
[]
[]
[]
[]
[]
[]
[]
[]
[]
[]
[]
[]
[]
[]
[]
[]
[]
[]
[]
[]
[]
[]
[]
[]
[]
[]
[]
[]
[]
[]
[]
[]
[]
[]
[]
[]
[]
[]
[]
[]
[]
[]
[]
[]
[]
[]
[]
[]
[]
[]
[]
[]
[]
[]
[]
[false]